Workbook

Sheet الرصيد الثابت
A1: الاسم | B1: رصيد اقتتاحي | C1: رصيد ختامي
A2: فلتر 5 عادي | B2: 1000 | C2: =IF(B2="","",SUMIF(الدخول!$B$3:$B$1311,A2,الدخول!$E$3:$E$1311)+SUMIF(الدخول!$B$3:$B$1311,A2,الدخول!$I$3:$I$1311)+B2-SUMIF(الدخول!$B$3:$B$1311,A2,الدخول!$F$3:$F$1311)) -> 1010
A3: فلتر 7 عادي | B3: 200 | C3: =IF(B3="","",SUMIF(الدخول!$B$3:$B$1311,A3,الدخول!$E$3:$E$1311)+SUMIF(الدخول!$B$3:$B$1311,A3,الدخول!$I$3:$I$1311)+B3-SUMIF(الدخول!$B$3:$B$1311,A3,الدخول!$F$3:$F$1311)) -> 200
A4: فلتر 5 RO | B4: 600 | C4: =IF(B4="","",SUMIF(الدخول!$B$3:$B$1311,A4,الدخول!$E$3:$E$1311)+SUMIF(الدخول!$B$3:$B$1311,A4,الدخول!$I$3:$I$1311)+B4-SUMIF(الدخول!$B$3:$B$1311,A4,الدخول!$F$3:$F$1311)) -> 600
A5: فلتر 7 RO | B5: 500 | C5: =IF(B5="","",SUMIF(الدخول!$B$3:$B$1311,A5,الدخول!$E$3:$E$1311)+SUMIF(الدخول!$B$3:$B$1311,A5,الدخول!$I$3:$I$1311)+B5-SUMIF(الدخول!$B$3:$B$1311,A5,الدخول!$F$3:$F$1311)) -> 500
A6: شمعة ممبرين | B6: 500 | C6: =IF(B6="","",SUMIF(الدخول!$B$3:$B$1311,A6,الدخول!$E$3:$E$1311)+SUMIF(الدخول!$B$3:$B$1311,A6,الدخول!$I$3:$I$1311)+B6-SUMIF(الدخول!$B$3:$B$1311,A6,الدخول!$F$3:$F$1311)) -> 500
A7: شمعة أولى | B7: 700 | C7: =IF(B7="","",SUMIF(الدخول!$B$3:$B$1311,A7,الدخول!$E$3:$E$1311)+SUMIF(الدخول!$B$3:$B$1311,A7,الدخول!$I$3:$I$1311)+B7-SUMIF(الدخول!$B$3:$B$1311,A7,الدخول!$F$3:$F$1311)) -> 700
A8: شمعة ثانية | B8: 300 | C8: =IF(B8="","",SUMIF(الدخول!$B$3:$B$1311,A8,الدخول!$E$3:$E$1311)+SUMIF(الدخول!$B$3:$B$1311,A8,الدخول!$I$3:$I$1311)+B8-SUMIF(الدخول!$B$3:$B$1311,A8,الدخول!$F$3:$F$1311)) -> 300
A9: شمعة ثالثة | B9: 400 | C9: =IF(B9="","",SUMIF(الدخول!$B$3:$B$1311,A9,الدخول!$E$3:$E$1311)+SUMIF(الدخول!$B$3:$B$1311,A9,الدخول!$I$3:$I$1311)+B9-SUMIF(الدخول!$B$3:$B$1311,A9,الدخول!$F$3:$F$1311)) -> 400
A10: شمعة جوز هند | B10: 100 | C10: =IF(B10="","",SUMIF(الدخول!$B$3:$B$1311,A10,الدخول!$E$3:$E$1311)+SUMIF(الدخول!$B$3:$B$1311,A10,الدخول!$I$3:$I$1311)+B10-SUMIF(الدخول!$B$3:$B$1311,A10,الدخول!$F$3:$F$1311)) -> 100
A11: شمعة كلسيدة | B11: 200 | C11: =IF(B11="","",SUMIF(الدخول!$B$3:$B$1311,A11,الدخول!$E$3:$E$1311)+SUMIF(الدخول!$B$3:$B$1311,A11,الدخول!$I$3:$I$1311)+B11-SUMIF(الدخول!$B$3:$B$1311,A11,الدخول!$F$3:$F$1311)) -> 200
A12: شمعة انفرا | B12: 250 | C12: =IF(B12="","",SUMIF(الدخول!$B$3:$B$1311,A12,الدخول!$E$3:$E$1311)+SUMIF(الدخول!$B$3:$B$1311,A12,الدخول!$I$3:$I$1311)+B12-SUMIF(الدخول!$B$3:$B$1311,A12,الدخول!$F$3:$F$1311)) -> 250
A13: شمعة UV | B13: 350 | C13: =IF(B13="","",SUMIF(الدخول!$B$3:$B$1311,A13,الدخول!$E$3:$E$1311)+SUMIF(الدخول!$B$3:$B$1311,A13,الدخول!$I$3:$I$1311)+B13-SUMIF(الدخول!$B$3:$B$1311,A13,الدخول!$F$3:$F$1311)) -> 350
A14: شاسيه خماسي | B14: 400 | C14: =IF(B14="","",SUMIF(الدخول!$B$3:$B$1311,A14,الدخول!$E$3:$E$1311)+SUMIF(الدخول!$B$3:$B$1311,A14,الدخول!$I$3:$I$1311)+B14-SUMIF(الدخول!$B$3:$B$1311,A14,الدخول!$F$3:$F$1311)) -> 400
A15: شاسيه RO | B15: 500 | C15: =IF(B15="","",SUMIF(الدخول!$B$3:$B$1311,A15,الدخول!$E$3:$E$1311)+SUMIF(الدخول!$B$3:$B$1311,A15,الدخول!$I$3:$I$1311)+B15-SUMIF(الدخول!$B$3:$B$1311,A15,الدخول!$F$3:$F$1311)) -> 500
A16: كريمب 2x1 | B16: 800 | C16: =IF(B16="","",SUMIF(الدخول!$B$3:$B$1311,A16,الدخول!$E$3:$E$1311)+SUMIF(الدخول!$B$3:$B$1311,A16,الدخول!$I$3:$I$1311)+B16-SUMIF(الدخول!$B$3:$B$1311,A16,الدخول!$F$3:$F$1311)) -> 800
A17: كريمب قاعدة | B17: 300 | C17: =IF(B17="","",SUMIF(الدخول!$B$3:$B$1311,A17,الدخول!$E$3:$E$1311)+SUMIF(الدخول!$B$3:$B$1311,A17,الدخول!$I$3:$I$1311)+B17-SUMIF(الدخول!$B$3:$B$1311,A17,الدخول!$F$3:$F$1311)) -> 300
A18: لوبرشير | B18: 100 | C18: =IF(B18="","",SUMIF(الدخول!$B$3:$B$1311,A18,الدخول!$E$3:$E$1311)+SUMIF(الدخول!$B$3:$B$1311,A18,الدخول!$I$3:$I$1311)+B18-SUMIF(الدخول!$B$3:$B$1311,A18,الدخول!$F$3:$F$1311)) -> 100
A19: هاي برشير | B19: 250 | C19: =IF(B19="","",SUMIF(الدخول!$B$3:$B$1311,A19,الدخول!$E$3:$E$1311)+SUMIF(الدخول!$B$3:$B$1311,A19,الدخول!$I$3:$I$1311)+B19-SUMIF(الدخول!$B$3:$B$1311,A19,الدخول!$F$3:$F$1311)) -> 250
A20: رباعي | B20: 350 | C20: =IF(B20="","",SUMIF(الدخول!$B$3:$B$1311,A20,الدخول!$E$3:$E$1311)+SUMIF(الدخول!$B$3:$B$1311,A20,الدخول!$I$3:$I$1311)+B20-SUMIF(الدخول!$B$3:$B$1311,A20,الدخول!$F$3:$F$1311)) -> 350
A21: كوع | B21: 750 | C21: =IF(B21="","",SUMIF(الدخول!$B$3:$B$1311,A21,الدخول!$E$3:$E$1311)+SUMIF(الدخول!$B$3:$B$1311,A21,الدخول!$I$3:$I$1311)+B21-SUMIF(الدخول!$B$3:$B$1311,A21,الدخول!$F$3:$F$1311)) -> 750
A22: خرطوم | B22: 600 | C22: =IF(B22="","",SUMIF(الدخول!$B$3:$B$1311,A22,الدخول!$E$3:$E$1311)+SUMIF(الدخول!$B$3:$B$1311,A22,الدخول!$I$3:$I$1311)+B22-SUMIF(الدخول!$B$3:$B$1311,A22,الدخول!$F$3:$F$1311)) -> 600
A23: هاوزينج | B23: 100 | C23: =IF(B23="","",SUMIF(الدخول!$B$3:$B$1311,A23,الدخول!$E$3:$E$1311)+SUMIF(الدخول!$B$3:$B$1311,A23,الدخول!$I$3:$I$1311)+B23-SUMIF(الدخول!$B$3:$B$1311,A23,الدخول!$F$3:$F$1311)) -> 100
A24: ناطرة نصف | B24: 200 | C24: =IF(B24="","",SUMIF(الدخول!$B$3:$B$1311,A24,الدخول!$E$3:$E$1311)+SUMIF(الدخول!$B$3:$B$1311,A24,الدخول!$I$3:$I$1311)+B24-SUMIF(الدخول!$B$3:$B$1311,A24,الدخول!$F$3:$F$1311)) -> 200
A25: ناطرة ثلاثة ارباع | B25: 200 | C25: =IF(B25="","",SUMIF(الدخول!$B$3:$B$1311,A25,الدخول!$E$3:$E$1311)+SUMIF(الدخول!$B$3:$B$1311,A25,الدخول!$I$3:$I$1311)+B25-SUMIF(الدخول!$B$3:$B$1311,A25,الدخول!$F$3:$F$1311)) -> 200
A26: محبس نصف | B26: 100 | C26: =IF(B26="","",SUMIF(الدخول!$B$3:$B$1311,A26,الدخول!$E$3:$E$1311)+SUMIF(الدخول!$B$3:$B$1311,A26,الدخول!$I$3:$I$1311)+B26-SUMIF(الدخول!$B$3:$B$1311,A26,الدخول!$F$3:$F$1311)) -> 100
A27: جوانات | B27: 120 | C27: =IF(B27="","",SUMIF(الدخول!$B$3:$B$1311,A27,الدخول!$E$3:$E$1311)+SUMIF(الدخول!$B$3:$B$1311,A27,الدخول!$I$3:$I$1311)+B27-SUMIF(الدخول!$B$3:$B$1311,A27,الدخول!$F$3:$F$1311)) -> 120
A28: خزان | B28: 150 | C28: =IF(B28="","",SUMIF(الدخول!$B$3:$B$1311,A28,الدخول!$E$3:$E$1311)+SUMIF(الدخول!$B$3:$B$1311,A28,الدخول!$I$3:$I$1311)+B28-SUMIF(الدخول!$B$3:$B$1311,A28,الدخول!$F$3:$F$1311)) -> 150
A29: مسامير | B29: 900 | C29: =IF(B29="","",SUMIF(الدخول!$B$3:$B$1311,A29,الدخول!$E$3:$E$1311)+SUMIF(الدخول!$B$3:$B$1311,A29,الدخول!$I$3:$I$1311)+B29-SUMIF(الدخول!$B$3:$B$1311,A29,الدخول!$F$3:$F$1311)) -> 900
C30: =IF(B30="","",SUMIF(الدخول!$B$3:$B$1311,A30,الدخول!$E$3:$E$1311)+SUMIF(الدخول!$B$3:$B$1311,A30,الدخول!$I$3:$I$1311)+B30-SUMIF(الدخول!$B$3:$B$1311,A30,الدخول!$F$3:$F$1311)) -> 
C31: =IF(B31="","",SUMIF(الدخول!$B$3:$B$1311,A31,الدخول!$E$3:$E$1311)+SUMIF(الدخول!$B$3:$B$1311,A31,الدخول!$I$3:$I$1311)+B31-SUMIF(الدخول!$B$3:$B$1311,A31,الدخول!$F$3:$F$1311)) -> 
C32: =IF(B32="","",SUMIF(الدخول!$B$3:$B$1311,A32,الدخول!$E$3:$E$1311)+SUMIF(الدخول!$B$3:$B$1311,A32,الدخول!$I$3:$I$1311)+B32-SUMIF(الدخول!$B$3:$B$1311,A32,الدخول!$F$3:$F$1311)) -> 
C33: =IF(B33="","",SUMIF(الدخول!$B$3:$B$1311,A33,الدخول!$E$3:$E$1311)+SUMIF(الدخول!$B$3:$B$1311,A33,الدخول!$I$3:$I$1311)+B33-SUMIF(الدخول!$B$3:$B$1311,A33,الدخول!$F$3:$F$1311)) -> 
C34: =IF(B34="","",SUMIF(الدخول!$B$3:$B$1311,A34,الدخول!$E$3:$E$1311)+SUMIF(الدخول!$B$3:$B$1311,A34,الدخول!$I$3:$I$1311)+B34-SUMIF(الدخول!$B$3:$B$1311,A34,الدخول!$F$3:$F$1311)) -> 
C35: =IF(B35="","",SUMIF(الدخول!$B$3:$B$1311,A35,الدخول!$E$3:$E$1311)+SUMIF(الدخول!$B$3:$B$1311,A35,الدخول!$I$3:$I$1311)+B35-SUMIF(الدخول!$B$3:$B$1311,A35,الدخول!$F$3:$F$1311)) -> 
C36: =IF(B36="","",SUMIF(الدخول!$B$3:$B$1311,A36,الدخول!$E$3:$E$1311)+SUMIF(الدخول!$B$3:$B$1311,A36,الدخول!$I$3:$I$1311)+B36-SUMIF(الدخول!$B$3:$B$1311,A36,الدخول!$F$3:$F$1311)) -> 
C37: =IF(B37="","",SUMIF(الدخول!$B$3:$B$1311,A37,الدخول!$E$3:$E$1311)+SUMIF(الدخول!$B$3:$B$1311,A37,الدخول!$I$3:$I$1311)+B37-SUMIF(الدخول!$B$3:$B$1311,A37,الدخول!$F$3:$F$1311)) -> 
C38: =IF(B38="","",SUMIF(الدخول!$B$3:$B$1311,A38,الدخول!$E$3:$E$1311)+SUMIF(الدخول!$B$3:$B$1311,A38,الدخول!$I$3:$I$1311)+B38-SUMIF(الدخول!$B$3:$B$1311,A38,الدخول!$F$3:$F$1311)) -> 
C39: =IF(B39="","",SUMIF(الدخول!$B$3:$B$1311,A39,الدخول!$E$3:$E$1311)+SUMIF(الدخول!$B$3:$B$1311,A39,الدخول!$I$3:$I$1311)+B39-SUMIF(الدخول!$B$3:$B$1311,A39,الدخول!$F$3:$F$1311)) -> 
C40: =IF(B40="","",SUMIF(الدخول!$B$3:$B$1311,A40,الدخول!$E$3:$E$1311)+SUMIF(الدخول!$B$3:$B$1311,A40,الدخول!$I$3:$I$1311)+B40-SUMIF(الدخول!$B$3:$B$1311,A40,الدخول!$F$3:$F$1311)) -> 
C41: =IF(B41="","",SUMIF(الدخول!$B$3:$B$1311,A41,الدخول!$E$3:$E$1311)+SUMIF(الدخول!$B$3:$B$1311,A41,الدخول!$I$3:$I$1311)+B41-SUMIF(الدخول!$B$3:$B$1311,A41,الدخول!$F$3:$F$1311)) -> 
C42: =IF(B42="","",SUMIF(الدخول!$B$3:$B$1311,A42,الدخول!$E$3:$E$1311)+SUMIF(الدخول!$B$3:$B$1311,A42,الدخول!$I$3:$I$1311)+B42-SUMIF(الدخول!$B$3:$B$1311,A42,الدخول!$F$3:$F$1311)) -> 
C43: =IF(B43="","",SUMIF(الدخول!$B$3:$B$1311,A43,الدخول!$E$3:$E$1311)+SUMIF(الدخول!$B$3:$B$1311,A43,الدخول!$I$3:$I$1311)+B43-SUMIF(الدخول!$B$3:$B$1311,A43,الدخول!$F$3:$F$1311)) -> 
C44: =IF(B44="","",SUMIF(الدخول!$B$3:$B$1311,A44,الدخول!$E$3:$E$1311)+SUMIF(الدخول!$B$3:$B$1311,A44,الدخول!$I$3:$I$1311)+B44-SUMIF(الدخول!$B$3:$B$1311,A44,الدخول!$F$3:$F$1311)) -> 
C45: =IF(B45="","",SUMIF(الدخول!$B$3:$B$1311,A45,الدخول!$E$3:$E$1311)+SUMIF(الدخول!$B$3:$B$1311,A45,الدخول!$I$3:$I$1311)+B45-SUMIF(الدخول!$B$3:$B$1311,A45,الدخول!$F$3:$F$1311)) -> 
C46: =IF(B46="","",SUMIF(الدخول!$B$3:$B$1311,A46,الدخول!$E$3:$E$1311)+SUMIF(الدخول!$B$3:$B$1311,A46,الدخول!$I$3:$I$1311)+B46-SUMIF(الدخول!$B$3:$B$1311,A46,الدخول!$F$3:$F$1311)) -> 
C47: =IF(B47="","",SUMIF(الدخول!$B$3:$B$1311,A47,الدخول!$E$3:$E$1311)+SUMIF(الدخول!$B$3:$B$1311,A47,الدخول!$I$3:$I$1311)+B47-SUMIF(الدخول!$B$3:$B$1311,A47,الدخول!$F$3:$F$1311)) -> 
C48: =IF(B48="","",SUMIF(الدخول!$B$3:$B$1311,A48,الدخول!$E$3:$E$1311)+SUMIF(الدخول!$B$3:$B$1311,A48,الدخول!$I$3:$I$1311)+B48-SUMIF(الدخول!$B$3:$B$1311,A48,الدخول!$F$3:$F$1311)) -> 
C49: =IF(B49="","",SUMIF(الدخول!$B$3:$B$1311,A49,الدخول!$E$3:$E$1311)+SUMIF(الدخول!$B$3:$B$1311,A49,الدخول!$I$3:$I$1311)+B49-SUMIF(الدخول!$B$3:$B$1311,A49,الدخول!$F$3:$F$1311)) -> 
C50: =IF(B50="","",SUMIF(الدخول!$B$3:$B$1311,A50,الدخول!$E$3:$E$1311)+SUMIF(الدخول!$B$3:$B$1311,A50,الدخول!$I$3:$I$1311)+B50-SUMIF(الدخول!$B$3:$B$1311,A50,الدخول!$F$3:$F$1311)) -> 
C51: =IF(B51="","",SUMIF(الدخول!$B$3:$B$1311,A51,الدخول!$E$3:$E$1311)+SUMIF(الدخول!$B$3:$B$1311,A51,الدخول!$I$3:$I$1311)+B51-SUMIF(الدخول!$B$3:$B$1311,A51,الدخول!$F$3:$F$1311)) -> 
C52: =IF(B52="","",SUMIF(الدخول!$B$3:$B$1311,A52,الدخول!$E$3:$E$1311)+SUMIF(الدخول!$B$3:$B$1311,A52,الدخول!$I$3:$I$1311)+B52-SUMIF(الدخول!$B$3:$B$1311,A52,الدخول!$F$3:$F$1311)) -> 

Sheet انواع الفلاتر
A1: مسلسل | B1: الاسم | C1: السعر
A2: 1 | B2: فلتر 5 عادي | C2: 900
A3: 2 | B3: فلتر 7 عادي | C3: 1200
A4: 3 | B4: فلتر 5 RO | C4: 2300
A5: 4 | B5: فلتر 7 RO | C5: 2500
A6: 5 | B6: شمعة ممبرين | C6: 350
A7: 6 | B7: شمعة أولى | C7: 20
A8: 7 | B8: شمعة ثانية | C8: 30
A9: 8 | B9: شمعة ثالثة | C9: 30
A10: 9 | B10: شمعة جوز هند | C10: 100
A11: 10 | B11: شمعة كلسيدة | C11: 100
A12: 11 | B12: شمعة انفرا | C12: 100
A13: 12 | B13: شمعة UV | C13: 1000
A14: 13 | B14: شاسيه خماسي | C14: 40
A15: 14 | B15: شاسيه RO | C15: 120
A16: 15 | B16: كريمب 2x1 | C16: 10
A17: 16 | B17: كريمب قاعدة | C17: 5
A18: 17 | B18: لوبرشير | C18: 60
A19: 18 | B19: هاي برشير | C19: 60
A20: 19 | B20: رباعي | C20: 60
A21: 20 | B21: كوع | C21: 5
A22: 21 | B22: خرطوم | C22: 6
A23: 22 | B23: هاوزينج | C23: 120
A24: 23 | B24: ناطرة نصف | C24: 25
A25: 24 | B25: ناطرة ثلاثة ارباع | C25: 50
A26: 25 | B26: محبس نصف | C26: 20
A27: 26 | B27: جوانات | C27: 10
A28: 27 | B28: خزان | C28: 350
A29: 28 | B29: مسامير | C29: 2
A30: 29 | B30: ش+ش3+ش1+ش2 +ش4 +ش5
A31: 30
A32: 31
A33: 32
A34: 33
A35: 34
A36: 35
A37: 36
A38: 37
A39: 38
A40: 39
A41: 40
A42: 41
A43: 42
A44: 43
A45: 44
A46: 45
A47: 46
A48: 47
A49: 48
A50: 49
A51: 50
A52: 51

Sheet اسماء العملاء
A1: اسم العميل | B1: عنوان العميل | C1: رقم التليفون | D1: رقم تليفون اخر | E1: كود العميل | F1: نوع الفلتر | G1: المدفوع | H1: اجمالي الحساب | I1: قيمة القسط | J1: تاريخ اول قسط | K1: الكمية | L1: السعر
A2: عاطف وحيد عزت حسام الدين | B2: ش ابو سعيد محل الموبيلات | E2: 1 | F2: فلتر 7 عادي | G2: 200 | H2: 1100 | I2: 100 | J2: 2018-10-30 | K2: 2 | L2: =IFERROR(VLOOKUP(F2,'انواع الفلاتر'!$B$2:$C$52,2,FALSE),"") -> 1200
A3: جويده ادريس جويده | B3: ش ابو سعيد محل الاحديه | E3: 2 | F3: فلتر 7 عادي | K3: 3 | L3: =IFERROR(VLOOKUP(F3,'انواع الفلاتر'!$B$2:$C$52,2,FALSE),"") -> 1200
L4: =IFERROR(VLOOKUP(F4,'انواع الفلاتر'!$B$2:$C$52,2,FALSE),"") -> 
L5: =IFERROR(VLOOKUP(F5,'انواع الفلاتر'!$B$2:$C$52,2,FALSE),"") -> 
L6: =IFERROR(VLOOKUP(F6,'انواع الفلاتر'!$B$2:$C$52,2,FALSE),"") -> 
L7: =IFERROR(VLOOKUP(F7,'انواع الفلاتر'!$B$2:$C$52,2,FALSE),"") -> 
L8: =IFERROR(VLOOKUP(F8,'انواع الفلاتر'!$B$2:$C$52,2,FALSE),"") -> 
L9: =IFERROR(VLOOKUP(F9,'انواع الفلاتر'!$B$2:$C$52,2,FALSE),"") -> 
L10: =IFERROR(VLOOKUP(F10,'انواع الفلاتر'!$B$2:$C$52,2,FALSE),"") -> 
L11: =IFERROR(VLOOKUP(F11,'انواع الفلاتر'!$B$2:$C$52,2,FALSE),"") -> 
L12: =IFERROR(VLOOKUP(F12,'انواع الفلاتر'!$B$2:$C$52,2,FALSE),"") -> 
L13: =IFERROR(VLOOKUP(F13,'انواع الفلاتر'!$B$2:$C$52,2,FALSE),"") -> 
L14: =IFERROR(VLOOKUP(F14,'انواع الفلاتر'!$B$2:$C$52,2,FALSE),"") -> 
L15: =IFERROR(VLOOKUP(F15,'انواع الفلاتر'!$B$2:$C$52,2,FALSE),"") -> 
L16: =IFERROR(VLOOKUP(F16,'انواع الفلاتر'!$B$2:$C$52,2,FALSE),"") -> 
L17: =IFERROR(VLOOKUP(F17,'انواع الفلاتر'!$B$2:$C$52,2,FALSE),"") -> 
L18: =IFERROR(VLOOKUP(F18,'انواع الفلاتر'!$B$2:$C$52,2,FALSE),"") -> 
L19: =IFERROR(VLOOKUP(F19,'انواع الفلاتر'!$B$2:$C$52,2,FALSE),"") -> 
L20: =IFERROR(VLOOKUP(F20,'انواع الفلاتر'!$B$2:$C$52,2,FALSE),"") -> 
L21: =IFERROR(VLOOKUP(F21,'انواع الفلاتر'!$B$2:$C$52,2,FALSE),"") -> 
L22: =IFERROR(VLOOKUP(F22,'انواع الفلاتر'!$B$2:$C$52,2,FALSE),"") -> 
L23: =IFERROR(VLOOKUP(F23,'انواع الفلاتر'!$B$2:$C$52,2,FALSE),"") -> 
L24: =IFERROR(VLOOKUP(F24,'انواع الفلاتر'!$B$2:$C$52,2,FALSE),"") -> 
L25: =IFERROR(VLOOKUP(F25,'انواع الفلاتر'!$B$2:$C$52,2,FALSE),"") -> 
L26: =IFERROR(VLOOKUP(F26,'انواع الفلاتر'!$B$2:$C$52,2,FALSE),"") -> 
L27: =IFERROR(VLOOKUP(F27,'انواع الفلاتر'!$B$2:$C$52,2,FALSE),"") -> 
L28: =IFERROR(VLOOKUP(F28,'انواع الفلاتر'!$B$2:$C$52,2,FALSE),"") -> 
L29: =IFERROR(VLOOKUP(F29,'انواع الفلاتر'!$B$2:$C$52,2,FALSE),"") -> 
L30: =IFERROR(VLOOKUP(F30,'انواع الفلاتر'!$B$2:$C$52,2,FALSE),"") -> 
L31: =IFERROR(VLOOKUP(F31,'انواع الفلاتر'!$B$2:$C$52,2,FALSE),"") -> 
L32: =IFERROR(VLOOKUP(F32,'انواع الفلاتر'!$B$2:$C$52,2,FALSE),"") -> 
L33: =IFERROR(VLOOKUP(F33,'انواع الفلاتر'!$B$2:$C$52,2,FALSE),"") -> 
L34: =IFERROR(VLOOKUP(F34,'انواع الفلاتر'!$B$2:$C$52,2,FALSE),"") -> 
L35: =IFERROR(VLOOKUP(F35,'انواع الفلاتر'!$B$2:$C$52,2,FALSE),"") -> 
L36: =IFERROR(VLOOKUP(F36,'انواع الفلاتر'!$B$2:$C$52,2,FALSE),"") -> 
L37: =IFERROR(VLOOKUP(F37,'انواع الفلاتر'!$B$2:$C$52,2,FALSE),"") -> 
L38: =IFERROR(VLOOKUP(F38,'انواع الفلاتر'!$B$2:$C$52,2,FALSE),"") -> 
L39: =IFERROR(VLOOKUP(F39,'انواع الفلاتر'!$B$2:$C$52,2,FALSE),"") -> 
L40: =IFERROR(VLOOKUP(F40,'انواع الفلاتر'!$B$2:$C$52,2,FALSE),"") -> 
L41: =IFERROR(VLOOKUP(F41,'انواع الفلاتر'!$B$2:$C$52,2,FALSE),"") -> 
L42: =IFERROR(VLOOKUP(F42,'انواع الفلاتر'!$B$2:$C$52,2,FALSE),"") -> 
L43: =IFERROR(VLOOKUP(F43,'انواع الفلاتر'!$B$2:$C$52,2,FALSE),"") -> 
L44: =IFERROR(VLOOKUP(F44,'انواع الفلاتر'!$B$2:$C$52,2,FALSE),"") -> 
L45: =IFERROR(VLOOKUP(F45,'انواع الفلاتر'!$B$2:$C$52,2,FALSE),"") -> 
J46: 2018-11-01 | K46: 2 | L46: =IFERROR(VLOOKUP(F46,'انواع الفلاتر'!$B$2:$C$52,2,FALSE),"") -> 
L47: =IFERROR(VLOOKUP(F47,'انواع الفلاتر'!$B$2:$C$52,2,FALSE),"") -> 
L48: =IFERROR(VLOOKUP(F48,'انواع الفلاتر'!$B$2:$C$52,2,FALSE),"") -> 
L49: =IFERROR(VLOOKUP(F49,'انواع الفلاتر'!$B$2:$C$52,2,FALSE),"") -> 
L50: =IFERROR(VLOOKUP(F50,'انواع الفلاتر'!$B$2:$C$52,2,FALSE),"") -> 
L51: =IFERROR(VLOOKUP(F51,'انواع الفلاتر'!$B$2:$C$52,2,FALSE),"") -> 
L52: =IFERROR(VLOOKUP(F52,'انواع الفلاتر'!$B$2:$C$52,2,FALSE),"") -> 
L53: =IFERROR(VLOOKUP(F53,'انواع الفلاتر'!$B$2:$C$52,2,FALSE),"") -> 
L54: =IFERROR(VLOOKUP(F54,'انواع الفلاتر'!$B$2:$C$52,2,FALSE),"") -> 
L55: =IFERROR(VLOOKUP(F55,'انواع الفلاتر'!$B$2:$C$52,2,FALSE),"") -> 
L56: =IFERROR(VLOOKUP(F56,'انواع الفلاتر'!$B$2:$C$52,2,FALSE),"") -> 
L57: =IFERROR(VLOOKUP(F57,'انواع الفلاتر'!$B$2:$C$52,2,FALSE),"") -> 
L58: =IFERROR(VLOOKUP(F58,'انواع الفلاتر'!$B$2:$C$52,2,FALSE),"") -> 
L59: =IFERROR(VLOOKUP(F59,'انواع الفلاتر'!$B$2:$C$52,2,FALSE),"") -> 
L60: =IFERROR(VLOOKUP(F60,'انواع الفلاتر'!$B$2:$C$52,2,FALSE),"") -> 
L61: =IFERROR(VLOOKUP(F61,'انواع الفلاتر'!$B$2:$C$52,2,FALSE),"") -> 
L62: =IFERROR(VLOOKUP(F62,'انواع الفلاتر'!$B$2:$C$52,2,FALSE),"") -> 
L63: =IFERROR(VLOOKUP(F63,'انواع الفلاتر'!$B$2:$C$52,2,FALSE),"") -> 
L64: =IFERROR(VLOOKUP(F64,'انواع الفلاتر'!$B$2:$C$52,2,FALSE),"") -> 
L65: =IFERROR(VLOOKUP(F65,'انواع الفلاتر'!$B$2:$C$52,2,FALSE),"") -> 
L66: =IFERROR(VLOOKUP(F66,'انواع الفلاتر'!$B$2:$C$52,2,FALSE),"") -> 
L67: =IFERROR(VLOOKUP(F67,'انواع الفلاتر'!$B$2:$C$52,2,FALSE),"") -> 
L68: =IFERROR(VLOOKUP(F68,'انواع الفلاتر'!$B$2:$C$52,2,FALSE),"") -> 
L69: =IFERROR(VLOOKUP(F69,'انواع الفلاتر'!$B$2:$C$52,2,FALSE),"") -> 
L70: =IFERROR(VLOOKUP(F70,'انواع الفلاتر'!$B$2:$C$52,2,FALSE),"") -> 
L71: =IFERROR(VLOOKUP(F71,'انواع الفلاتر'!$B$2:$C$52,2,FALSE),"") -> 
L72: =IFERROR(VLOOKUP(F72,'انواع الفلاتر'!$B$2:$C$52,2,FALSE),"") -> 
L73: =IFERROR(VLOOKUP(F73,'انواع الفلاتر'!$B$2:$C$52,2,FALSE),"") -> 
L74: =IFERROR(VLOOKUP(F74,'انواع الفلاتر'!$B$2:$C$52,2,FALSE),"") -> 
L75: =IFERROR(VLOOKUP(F75,'انواع الفلاتر'!$B$2:$C$52,2,FALSE),"") -> 
L76: =IFERROR(VLOOKUP(F76,'انواع الفلاتر'!$B$2:$C$52,2,FALSE),"") -> 
L77: =IFERROR(VLOOKUP(F77,'انواع الفلاتر'!$B$2:$C$52,2,FALSE),"") -> 
L78: =IFERROR(VLOOKUP(F78,'انواع الفلاتر'!$B$2:$C$52,2,FALSE),"") -> 
L79: =IFERROR(VLOOKUP(F79,'انواع الفلاتر'!$B$2:$C$52,2,FALSE),"") -> 
L80: =IFERROR(VLOOKUP(F80,'انواع الفلاتر'!$B$2:$C$52,2,FALSE),"") -> 
L81: =IFERROR(VLOOKUP(F81,'انواع الفلاتر'!$B$2:$C$52,2,FALSE),"") -> 
L82: =IFERROR(VLOOKUP(F82,'انواع الفلاتر'!$B$2:$C$52,2,FALSE),"") -> 
L83: =IFERROR(VLOOKUP(F83,'انواع الفلاتر'!$B$2:$C$52,2,FALSE),"") -> 
L84: =IFERROR(VLOOKUP(F84,'انواع الفلاتر'!$B$2:$C$52,2,FALSE),"") -> 
L85: =IFERROR(VLOOKUP(F85,'انواع الفلاتر'!$B$2:$C$52,2,FALSE),"") -> 
L86: =IFERROR(VLOOKUP(F86,'انواع الفلاتر'!$B$2:$C$52,2,FALSE),"") -> 
L87: =IFERROR(VLOOKUP(F87,'انواع الفلاتر'!$B$2:$C$52,2,FALSE),"") -> 
L88: =IFERROR(VLOOKUP(F88,'انواع الفلاتر'!$B$2:$C$52,2,FALSE),"") -> 
L89: =IFERROR(VLOOKUP(F89,'انواع الفلاتر'!$B$2:$C$52,2,FALSE),"") -> 
L90: =IFERROR(VLOOKUP(F90,'انواع الفلاتر'!$B$2:$C$52,2,FALSE),"") -> 
L91: =IFERROR(VLOOKUP(F91,'انواع الفلاتر'!$B$2:$C$52,2,FALSE),"") -> 
L92: =IFERROR(VLOOKUP(F92,'انواع الفلاتر'!$B$2:$C$52,2,FALSE),"") -> 
L93: =IFERROR(VLOOKUP(F93,'انواع الفلاتر'!$B$2:$C$52,2,FALSE),"") -> 
L94: =IFERROR(VLOOKUP(F94,'انواع الفلاتر'!$B$2:$C$52,2,FALSE),"") -> 
L95: =IFERROR(VLOOKUP(F95,'انواع الفلاتر'!$B$2:$C$52,2,FALSE),"") -> 
L96: =IFERROR(VLOOKUP(F96,'انواع الفلاتر'!$B$2:$C$52,2,FALSE),"") -> 
L97: =IFERROR(VLOOKUP(F97,'انواع الفلاتر'!$B$2:$C$52,2,FALSE),"") -> 
L98: =IFERROR(VLOOKUP(F98,'انواع الفلاتر'!$B$2:$C$52,2,FALSE),"") -> 
L99: =IFERROR(VLOOKUP(F99,'انواع الفلاتر'!$B$2:$C$52,2,FALSE),"") -> 
L100: =IFERROR(VLOOKUP(F100,'انواع الفلاتر'!$B$2:$C$52,2,FALSE),"") -> 
L101: =IFERROR(VLOOKUP(F101,'انواع الفلاتر'!$B$2:$C$52,2,FALSE),"") -> 
L102: =IFERROR(VLOOKUP(F102,'انواع الفلاتر'!$B$2:$C$52,2,FALSE),"") -> 
L103: =IFERROR(VLOOKUP(F103,'انواع الفلاتر'!$B$2:$C$52,2,FALSE),"") -> 
L104: =IFERROR(VLOOKUP(F104,'انواع الفلاتر'!$B$2:$C$52,2,FALSE),"") -> 
L105: =IFERROR(VLOOKUP(F105,'انواع الفلاتر'!$B$2:$C$52,2,FALSE),"") -> 
L106: =IFERROR(VLOOKUP(F106,'انواع الفلاتر'!$B$2:$C$52,2,FALSE),"") -> 
L107: =IFERROR(VLOOKUP(F107,'انواع الفلاتر'!$B$2:$C$52,2,FALSE),"") -> 
L108: =IFERROR(VLOOKUP(F108,'انواع الفلاتر'!$B$2:$C$52,2,FALSE),"") -> 
L109: =IFERROR(VLOOKUP(F109,'انواع الفلاتر'!$B$2:$C$52,2,FALSE),"") -> 
L110: =IFERROR(VLOOKUP(F110,'انواع الفلاتر'!$B$2:$C$52,2,FALSE),"") -> 
L111: =IFERROR(VLOOKUP(F111,'انواع الفلاتر'!$B$2:$C$52,2,FALSE),"") -> 
L112: =IFERROR(VLOOKUP(F112,'انواع الفلاتر'!$B$2:$C$52,2,FALSE),"") -> 
L113: =IFERROR(VLOOKUP(F113,'انواع الفلاتر'!$B$2:$C$52,2,FALSE),"") -> 
L114: =IFERROR(VLOOKUP(F114,'انواع الفلاتر'!$B$2:$C$52,2,FALSE),"") -> 
L115: =IFERROR(VLOOKUP(F115,'انواع الفلاتر'!$B$2:$C$52,2,FALSE),"") -> 
L116: =IFERROR(VLOOKUP(F116,'انواع الفلاتر'!$B$2:$C$52,2,FALSE),"") -> 
L117: =IFERROR(VLOOKUP(F117,'انواع الفلاتر'!$B$2:$C$52,2,FALSE),"") -> 
L118: =IFERROR(VLOOKUP(F118,'انواع الفلاتر'!$B$2:$C$52,2,FALSE),"") -> 
L119: =IFERROR(VLOOKUP(F119,'انواع الفلاتر'!$B$2:$C$52,2,FALSE),"") -> 
L120: =IFERROR(VLOOKUP(F120,'انواع الفلاتر'!$B$2:$C$52,2,FALSE),"") -> 
L121: =IFERROR(VLOOKUP(F121,'انواع الفلاتر'!$B$2:$C$52,2,FALSE),"") -> 
L122: =IFERROR(VLOOKUP(F122,'انواع الفلاتر'!$B$2:$C$52,2,FALSE),"") -> 
L123: =IFERROR(VLOOKUP(F123,'انواع الفلاتر'!$B$2:$C$52,2,FALSE),"") -> 
L124: =IFERROR(VLOOKUP(F124,'انواع الفلاتر'!$B$2:$C$52,2,FALSE),"") -> 
L125: =IFERROR(VLOOKUP(F125,'انواع الفلاتر'!$B$2:$C$52,2,FALSE),"") -> 
L126: =IFERROR(VLOOKUP(F126,'انواع الفلاتر'!$B$2:$C$52,2,FALSE),"") -> 
L127: =IFERROR(VLOOKUP(F127,'انواع الفلاتر'!$B$2:$C$52,2,FALSE),"") -> 
L128: =IFERROR(VLOOKUP(F128,'انواع الفلاتر'!$B$2:$C$52,2,FALSE),"") -> 
L129: =IFERROR(VLOOKUP(F129,'انواع الفلاتر'!$B$2:$C$52,2,FALSE),"") -> 
L130: =IFERROR(VLOOKUP(F130,'انواع الفلاتر'!$B$2:$C$52,2,FALSE),"") -> 
L131: =IFERROR(VLOOKUP(F131,'انواع الفلاتر'!$B$2:$C$52,2,FALSE),"") -> 
L132: =IFERROR(VLOOKUP(F132,'انواع الفلاتر'!$B$2:$C$52,2,FALSE),"") -> 
L133: =IFERROR(VLOOKUP(F133,'انواع الفلاتر'!$B$2:$C$52,2,FALSE),"") -> 
L134: =IFERROR(VLOOKUP(F134,'انواع الفلاتر'!$B$2:$C$52,2,FALSE),"") -> 
L135: =IFERROR(VLOOKUP(F135,'انواع الفلاتر'!$B$2:$C$52,2,FALSE),"") -> 
L136: =IFERROR(VLOOKUP(F136,'انواع الفلاتر'!$B$2:$C$52,2,FALSE),"") -> 
L137: =IFERROR(VLOOKUP(F137,'انواع الفلاتر'!$B$2:$C$52,2,FALSE),"") -> 
L138: =IFERROR(VLOOKUP(F138,'انواع الفلاتر'!$B$2:$C$52,2,FALSE),"") -> 
L139: =IFERROR(VLOOKUP(F139,'انواع الفلاتر'!$B$2:$C$52,2,FALSE),"") -> 
L140: =IFERROR(VLOOKUP(F140,'انواع الفلاتر'!$B$2:$C$52,2,FALSE),"") -> 
L141: =IFERROR(VLOOKUP(F141,'انواع الفلاتر'!$B$2:$C$52,2,FALSE),"") -> 
L142: =IFERROR(VLOOKUP(F142,'انواع الفلاتر'!$B$2:$C$52,2,FALSE),"") -> 
L143: =IFERROR(VLOOKUP(F143,'انواع الفلاتر'!$B$2:$C$52,2,FALSE),"") -> 
L144: =IFERROR(VLOOKUP(F144,'انواع الفلاتر'!$B$2:$C$52,2,FALSE),"") -> 
L145: =IFERROR(VLOOKUP(F145,'انواع الفلاتر'!$B$2:$C$52,2,FALSE),"") -> 
L146: =IFERROR(VLOOKUP(F146,'انواع الفلاتر'!$B$2:$C$52,2,FALSE),"") -> 
L147: =IFERROR(VLOOKUP(F147,'انواع الفلاتر'!$B$2:$C$52,2,FALSE),"") -> 
L148: =IFERROR(VLOOKUP(F148,'انواع الفلاتر'!$B$2:$C$52,2,FALSE),"") -> 
L149: =IFERROR(VLOOKUP(F149,'انواع الفلاتر'!$B$2:$C$52,2,FALSE),"") -> 
L150: =IFERROR(VLOOKUP(F150,'انواع الفلاتر'!$B$2:$C$52,2,FALSE),"") -> 
L151: =IFERROR(VLOOKUP(F151,'انواع الفلاتر'!$B$2:$C$52,2,FALSE),"") -> 
L152: =IFERROR(VLOOKUP(F152,'انواع الفلاتر'!$B$2:$C$52,2,FALSE),"") -> 
L153: =IFERROR(VLOOKUP(F153,'انواع الفلاتر'!$B$2:$C$52,2,FALSE),"") -> 
L154: =IFERROR(VLOOKUP(F154,'انواع الفلاتر'!$B$2:$C$52,2,FALSE),"") -> 
L155: =IFERROR(VLOOKUP(F155,'انواع الفلاتر'!$B$2:$C$52,2,FALSE),"") -> 
L156: =IFERROR(VLOOKUP(F156,'انواع الفلاتر'!$B$2:$C$52,2,FALSE),"") -> 
L157: =IFERROR(VLOOKUP(F157,'انواع الفلاتر'!$B$2:$C$52,2,FALSE),"") -> 
L158: =IFERROR(VLOOKUP(F158,'انواع الفلاتر'!$B$2:$C$52,2,FALSE),"") -> 
L159: =IFERROR(VLOOKUP(F159,'انواع الفلاتر'!$B$2:$C$52,2,FALSE),"") -> 
L160: =IFERROR(VLOOKUP(F160,'انواع الفلاتر'!$B$2:$C$52,2,FALSE),"") -> 
L161: =IFERROR(VLOOKUP(F161,'انواع الفلاتر'!$B$2:$C$52,2,FALSE),"") -> 
L162: =IFERROR(VLOOKUP(F162,'انواع الفلاتر'!$B$2:$C$52,2,FALSE),"") -> 
L163: =IFERROR(VLOOKUP(F163,'انواع الفلاتر'!$B$2:$C$52,2,FALSE),"") -> 
L164: =IFERROR(VLOOKUP(F164,'انواع الفلاتر'!$B$2:$C$52,2,FALSE),"") -> 
L165: =IFERROR(VLOOKUP(F165,'انواع الفلاتر'!$B$2:$C$52,2,FALSE),"") -> 
L166: =IFERROR(VLOOKUP(F166,'انواع الفلاتر'!$B$2:$C$52,2,FALSE),"") -> 
L167: =IFERROR(VLOOKUP(F167,'انواع الفلاتر'!$B$2:$C$52,2,FALSE),"") -> 
L168: =IFERROR(VLOOKUP(F168,'انواع الفلاتر'!$B$2:$C$52,2,FALSE),"") -> 
L169: =IFERROR(VLOOKUP(F169,'انواع الفلاتر'!$B$2:$C$52,2,FALSE),"") -> 
L170: =IFERROR(VLOOKUP(F170,'انواع الفلاتر'!$B$2:$C$52,2,FALSE),"") -> 
L171: =IFERROR(VLOOKUP(F171,'انواع الفلاتر'!$B$2:$C$52,2,FALSE),"") -> 
L172: =IFERROR(VLOOKUP(F172,'انواع الفلاتر'!$B$2:$C$52,2,FALSE),"") -> 
L173: =IFERROR(VLOOKUP(F173,'انواع الفلاتر'!$B$2:$C$52,2,FALSE),"") -> 
L174: =IFERROR(VLOOKUP(F174,'انواع الفلاتر'!$B$2:$C$52,2,FALSE),"") -> 
L175: =IFERROR(VLOOKUP(F175,'انواع الفلاتر'!$B$2:$C$52,2,FALSE),"") -> 
L176: =IFERROR(VLOOKUP(F176,'انواع الفلاتر'!$B$2:$C$52,2,FALSE),"") -> 
L177: =IFERROR(VLOOKUP(F177,'انواع الفلاتر'!$B$2:$C$52,2,FALSE),"") -> 
L178: =IFERROR(VLOOKUP(F178,'انواع الفلاتر'!$B$2:$C$52,2,FALSE),"") -> 
L179: =IFERROR(VLOOKUP(F179,'انواع الفلاتر'!$B$2:$C$52,2,FALSE),"") -> 
L180: =IFERROR(VLOOKUP(F180,'انواع الفلاتر'!$B$2:$C$52,2,FALSE),"") -> 
L181: =IFERROR(VLOOKUP(F181,'انواع الفلاتر'!$B$2:$C$52,2,FALSE),"") -> 
L182: =IFERROR(VLOOKUP(F182,'انواع الفلاتر'!$B$2:$C$52,2,FALSE),"") -> 
L183: =IFERROR(VLOOKUP(F183,'انواع الفلاتر'!$B$2:$C$52,2,FALSE),"") -> 
L184: =IFERROR(VLOOKUP(F184,'انواع الفلاتر'!$B$2:$C$52,2,FALSE),"") -> 
L185: =IFERROR(VLOOKUP(F185,'انواع الفلاتر'!$B$2:$C$52,2,FALSE),"") -> 
L186: =IFERROR(VLOOKUP(F186,'انواع الفلاتر'!$B$2:$C$52,2,FALSE),"") -> 
L187: =IFERROR(VLOOKUP(F187,'انواع الفلاتر'!$B$2:$C$52,2,FALSE),"") -> 
L188: =IFERROR(VLOOKUP(F188,'انواع الفلاتر'!$B$2:$C$52,2,FALSE),"") -> 
L189: =IFERROR(VLOOKUP(F189,'انواع الفلاتر'!$B$2:$C$52,2,FALSE),"") -> 
L190: =IFERROR(VLOOKUP(F190,'انواع الفلاتر'!$B$2:$C$52,2,FALSE),"") -> 
L191: =IFERROR(VLOOKUP(F191,'انواع الفلاتر'!$B$2:$C$52,2,FALSE),"") -> 
L192: =IFERROR(VLOOKUP(F192,'انواع الفلاتر'!$B$2:$C$52,2,FALSE),"") -> 
L193: =IFERROR(VLOOKUP(F193,'انواع الفلاتر'!$B$2:$C$52,2,FALSE),"") -> 
L194: =IFERROR(VLOOKUP(F194,'انواع الفلاتر'!$B$2:$C$52,2,FALSE),"") -> 
L195: =IFERROR(VLOOKUP(F195,'انواع الفلاتر'!$B$2:$C$52,2,FALSE),"") -> 
L196: =IFERROR(VLOOKUP(F196,'انواع الفلاتر'!$B$2:$C$52,2,FALSE),"") -> 
L197: =IFERROR(VLOOKUP(F197,'انواع الفلاتر'!$B$2:$C$52,2,FALSE),"") -> 
L198: =IFERROR(VLOOKUP(F198,'انواع الفلاتر'!$B$2:$C$52,2,FALSE),"") -> 
L199: =IFERROR(VLOOKUP(F199,'انواع الفلاتر'!$B$2:$C$52,2,FALSE),"") -> 
L200: =IFERROR(VLOOKUP(F200,'انواع الفلاتر'!$B$2:$C$52,2,FALSE),"") -> 
... 1393 more rows

Sheet الدخول
A1: الصفحة الرئيسية
A2: التاريخ | B2: النوع | C2: رصيد افتتاحي | D2: رصيد ختامي | E2: دخول | F2: خروج | G2: جرد | H2: اسم المندوب | I2: مرتجع | J2: اسم العميل | K2: كود العمبل | L2: عنوان العميل | M2: رقم التليفون | N2: ملاحظات
A3: =IF(B3="","",TODAY()) ->  | C3: =IF(B3="","",SUMIF('الرصيد الثابت'!$A$2:$A$52,B3,'الرصيد الثابت'!$B$2:$B$52)) ->  | D3: =IF(B3="","",SUMIF('الرصيد الثابت'!$A$2:$A$52,B3,'الرصيد الثابت'!$C$2:$C$52)) ->  | G3: =SUM(E3-F3) -> 0 | K3: =IFERROR(VLOOKUP(J3,'اسماء العملاء'!$A$2:$E$1589,5,FALSE),"") ->  | L3: =IFERROR(VLOOKUP(J3,'اسماء العملاء'!$A$2:$C$1589,2,FALSE),"") ->  | M3: =IFERROR(VLOOKUP(J3,'اسماء العملاء'!$A$2:$C$1589,3,FALSE),"") -> 
A4: =IF(B4="","",TODAY()) ->  | C4: =IF(B4="","",SUMIF('الرصيد الثابت'!$A$2:$A$52,B4,'الرصيد الثابت'!$B$2:$B$52)) ->  | D4: =IF(B4="","",SUMIF('الرصيد الثابت'!$A$2:$A$52,B4,'الرصيد الثابت'!$C$2:$C$52)) ->  | G4: =SUM(E4-F4) -> 0
C5: =IF(B5="","",SUMIF('الرصيد الثابت'!$A$2:$A$52,B5,'الرصيد الثابت'!$B$2:$B$52)) ->  | D5: =IF(B5="","",SUMIF('الرصيد الثابت'!$A$2:$A$52,B5,'الرصيد الثابت'!$C$2:$C$52)) ->  | G5: 0
C6: =IF(B6="","",SUMIF('الرصيد الثابت'!$A$2:$A$52,B6,'الرصيد الثابت'!$B$2:$B$52)) ->  | D6: =IF(B6="","",SUMIF('الرصيد الثابت'!$A$2:$A$52,B6,'الرصيد الثابت'!$C$2:$C$52)) ->  | G6: 0
C7: =IF(B7="","",SUMIF('الرصيد الثابت'!$A$2:$A$52,B7,'الرصيد الثابت'!$B$2:$B$52)) ->  | D7: =IF(B7="","",SUMIF('الرصيد الثابت'!$A$2:$A$52,B7,'الرصيد الثابت'!$C$2:$C$52)) ->  | G7: 0
C8: =IF(B8="","",SUMIF('الرصيد الثابت'!$A$2:$A$52,B8,'الرصيد الثابت'!$B$2:$B$52)) ->  | D8: =IF(B8="","",SUMIF('الرصيد الثابت'!$A$2:$A$52,B8,'الرصيد الثابت'!$C$2:$C$52)) ->  | G8: 0
C9: =IF(B9="","",SUMIF('الرصيد الثابت'!$A$2:$A$52,B9,'الرصيد الثابت'!$B$2:$B$52)) ->  | D9: =IF(B9="","",SUMIF('الرصيد الثابت'!$A$2:$A$52,B9,'الرصيد الثابت'!$C$2:$C$52)) ->  | G9: 0
C10: =IF(B10="","",SUMIF('الرصيد الثابت'!$A$2:$A$52,B10,'الرصيد الثابت'!$B$2:$B$52)) ->  | D10: =IF(B10="","",SUMIF('الرصيد الثابت'!$A$2:$A$52,B10,'الرصيد الثابت'!$C$2:$C$52)) ->  | G10: 0
C11: =IF(B11="","",SUMIF('الرصيد الثابت'!$A$2:$A$52,B11,'الرصيد الثابت'!$B$2:$B$52)) ->  | D11: =IF(B11="","",SUMIF('الرصيد الثابت'!$A$2:$A$52,B11,'الرصيد الثابت'!$C$2:$C$52)) ->  | G11: 0
C12: =IF(B12="","",SUMIF('الرصيد الثابت'!$A$2:$A$52,B12,'الرصيد الثابت'!$B$2:$B$52)) ->  | D12: =IF(B12="","",SUMIF('الرصيد الثابت'!$A$2:$A$52,B12,'الرصيد الثابت'!$C$2:$C$52)) ->  | G12: 0
C13: =IF(B13="","",SUMIF('الرصيد الثابت'!$A$2:$A$52,B13,'الرصيد الثابت'!$B$2:$B$52)) ->  | D13: =IF(B13="","",SUMIF('الرصيد الثابت'!$A$2:$A$52,B13,'الرصيد الثابت'!$C$2:$C$52)) ->  | G13: 0
C14: =IF(B14="","",SUMIF('الرصيد الثابت'!$A$2:$A$52,B14,'الرصيد الثابت'!$B$2:$B$52)) ->  | D14: =IF(B14="","",SUMIF('الرصيد الثابت'!$A$2:$A$52,B14,'الرصيد الثابت'!$C$2:$C$52)) ->  | G14: 0
C15: =IF(B15="","",SUMIF('الرصيد الثابت'!$A$2:$A$52,B15,'الرصيد الثابت'!$B$2:$B$52)) ->  | D15: =IF(B15="","",SUMIF('الرصيد الثابت'!$A$2:$A$52,B15,'الرصيد الثابت'!$C$2:$C$52)) ->  | G15: 0
C16: =IF(B16="","",SUMIF('الرصيد الثابت'!$A$2:$A$52,B16,'الرصيد الثابت'!$B$2:$B$52)) ->  | D16: =IF(B16="","",SUMIF('الرصيد الثابت'!$A$2:$A$52,B16,'الرصيد الثابت'!$C$2:$C$52)) ->  | G16: 0
C17: =IF(B17="","",SUMIF('الرصيد الثابت'!$A$2:$A$52,B17,'الرصيد الثابت'!$B$2:$B$52)) ->  | D17: =IF(B17="","",SUMIF('الرصيد الثابت'!$A$2:$A$52,B17,'الرصيد الثابت'!$C$2:$C$52)) ->  | G17: 0
C18: =IF(B18="","",SUMIF('الرصيد الثابت'!$A$2:$A$52,B18,'الرصيد الثابت'!$B$2:$B$52)) ->  | D18: =IF(B18="","",SUMIF('الرصيد الثابت'!$A$2:$A$52,B18,'الرصيد الثابت'!$C$2:$C$52)) ->  | G18: 0
C19: =IF(B19="","",SUMIF('الرصيد الثابت'!$A$2:$A$52,B19,'الرصيد الثابت'!$B$2:$B$52)) ->  | D19: =IF(B19="","",SUMIF('الرصيد الثابت'!$A$2:$A$52,B19,'الرصيد الثابت'!$C$2:$C$52)) ->  | G19: 0
C20: =IF(B20="","",SUMIF('الرصيد الثابت'!$A$2:$A$52,B20,'الرصيد الثابت'!$B$2:$B$52)) ->  | D20: =IF(B20="","",SUMIF('الرصيد الثابت'!$A$2:$A$52,B20,'الرصيد الثابت'!$C$2:$C$52)) ->  | G20: 0
C21: =IF(B21="","",SUMIF('الرصيد الثابت'!$A$2:$A$52,B21,'الرصيد الثابت'!$B$2:$B$52)) ->  | D21: =IF(B21="","",SUMIF('الرصيد الثابت'!$A$2:$A$52,B21,'الرصيد الثابت'!$C$2:$C$52)) ->  | G21: 0
C22: =IF(B22="","",SUMIF('الرصيد الثابت'!$A$2:$A$52,B22,'الرصيد الثابت'!$B$2:$B$52)) ->  | D22: =IF(B22="","",SUMIF('الرصيد الثابت'!$A$2:$A$52,B22,'الرصيد الثابت'!$C$2:$C$52)) ->  | G22: 0
C23: =IF(B23="","",SUMIF('الرصيد الثابت'!$A$2:$A$52,B23,'الرصيد الثابت'!$B$2:$B$52)) ->  | D23: =IF(B23="","",SUMIF('الرصيد الثابت'!$A$2:$A$52,B23,'الرصيد الثابت'!$C$2:$C$52)) ->  | G23: 0
C24: =IF(B24="","",SUMIF('الرصيد الثابت'!$A$2:$A$52,B24,'الرصيد الثابت'!$B$2:$B$52)) ->  | D24: =IF(B24="","",SUMIF('الرصيد الثابت'!$A$2:$A$52,B24,'الرصيد الثابت'!$C$2:$C$52)) ->  | G24: 0
C25: =IF(B25="","",SUMIF('الرصيد الثابت'!$A$2:$A$52,B25,'الرصيد الثابت'!$B$2:$B$52)) ->  | D25: =IF(B25="","",SUMIF('الرصيد الثابت'!$A$2:$A$52,B25,'الرصيد الثابت'!$C$2:$C$52)) ->  | G25: 0
C26: =IF(B26="","",SUMIF('الرصيد الثابت'!$A$2:$A$52,B26,'الرصيد الثابت'!$B$2:$B$52)) ->  | D26: =IF(B26="","",SUMIF('الرصيد الثابت'!$A$2:$A$52,B26,'الرصيد الثابت'!$C$2:$C$52)) ->  | G26: 0
C27: =IF(B27="","",SUMIF('الرصيد الثابت'!$A$2:$A$52,B27,'الرصيد الثابت'!$B$2:$B$52)) ->  | D27: =IF(B27="","",SUMIF('الرصيد الثابت'!$A$2:$A$52,B27,'الرصيد الثابت'!$C$2:$C$52)) ->  | G27: 0
C28: =IF(B28="","",SUMIF('الرصيد الثابت'!$A$2:$A$52,B28,'الرصيد الثابت'!$B$2:$B$52)) ->  | D28: =IF(B28="","",SUMIF('الرصيد الثابت'!$A$2:$A$52,B28,'الرصيد الثابت'!$C$2:$C$52)) ->  | G28: 0
C29: =IF(B29="","",SUMIF('الرصيد الثابت'!$A$2:$A$52,B29,'الرصيد الثابت'!$B$2:$B$52)) ->  | D29: =IF(B29="","",SUMIF('الرصيد الثابت'!$A$2:$A$52,B29,'الرصيد الثابت'!$C$2:$C$52)) ->  | G29: 0
C30: =IF(B30="","",SUMIF('الرصيد الثابت'!$A$2:$A$52,B30,'الرصيد الثابت'!$B$2:$B$52)) ->  | D30: =IF(B30="","",SUMIF('الرصيد الثابت'!$A$2:$A$52,B30,'الرصيد الثابت'!$C$2:$C$52)) ->  | G30: 0
C31: =IF(B31="","",SUMIF('الرصيد الثابت'!$A$2:$A$52,B31,'الرصيد الثابت'!$B$2:$B$52)) ->  | D31: =IF(B31="","",SUMIF('الرصيد الثابت'!$A$2:$A$52,B31,'الرصيد الثابت'!$C$2:$C$52)) ->  | G31: 0
C32: =IF(B32="","",SUMIF('الرصيد الثابت'!$A$2:$A$52,B32,'الرصيد الثابت'!$B$2:$B$52)) ->  | D32: =IF(B32="","",SUMIF('الرصيد الثابت'!$A$2:$A$52,B32,'الرصيد الثابت'!$C$2:$C$52)) ->  | G32: 0
C33: =IF(B33="","",SUMIF('الرصيد الثابت'!$A$2:$A$52,B33,'الرصيد الثابت'!$B$2:$B$52)) ->  | D33: =IF(B33="","",SUMIF('الرصيد الثابت'!$A$2:$A$52,B33,'الرصيد الثابت'!$C$2:$C$52)) ->  | G33: 0
C34: =IF(B34="","",SUMIF('الرصيد الثابت'!$A$2:$A$52,B34,'الرصيد الثابت'!$B$2:$B$52)) ->  | D34: =IF(B34="","",SUMIF('الرصيد الثابت'!$A$2:$A$52,B34,'الرصيد الثابت'!$C$2:$C$52)) ->  | G34: 0
C35: =IF(B35="","",SUMIF('الرصيد الثابت'!$A$2:$A$52,B35,'الرصيد الثابت'!$B$2:$B$52)) ->  | D35: =IF(B35="","",SUMIF('الرصيد الثابت'!$A$2:$A$52,B35,'الرصيد الثابت'!$C$2:$C$52)) ->  | G35: 0
C36: =IF(B36="","",SUMIF('الرصيد الثابت'!$A$2:$A$52,B36,'الرصيد الثابت'!$B$2:$B$52)) ->  | D36: =IF(B36="","",SUMIF('الرصيد الثابت'!$A$2:$A$52,B36,'الرصيد الثابت'!$C$2:$C$52)) ->  | G36: 0
C37: =IF(B37="","",SUMIF('الرصيد الثابت'!$A$2:$A$52,B37,'الرصيد الثابت'!$B$2:$B$52)) ->  | D37: =IF(B37="","",SUMIF('الرصيد الثابت'!$A$2:$A$52,B37,'الرصيد الثابت'!$C$2:$C$52)) ->  | G37: 0
C38: =IF(B38="","",SUMIF('الرصيد الثابت'!$A$2:$A$52,B38,'الرصيد الثابت'!$B$2:$B$52)) ->  | D38: =IF(B38="","",SUMIF('الرصيد الثابت'!$A$2:$A$52,B38,'الرصيد الثابت'!$C$2:$C$52)) ->  | G38: 0
C39: =IF(B39="","",SUMIF('الرصيد الثابت'!$A$2:$A$52,B39,'الرصيد الثابت'!$B$2:$B$52)) ->  | D39: =IF(B39="","",SUMIF('الرصيد الثابت'!$A$2:$A$52,B39,'الرصيد الثابت'!$C$2:$C$52)) ->  | G39: 0
C40: =IF(B40="","",SUMIF('الرصيد الثابت'!$A$2:$A$52,B40,'الرصيد الثابت'!$B$2:$B$52)) ->  | D40: =IF(B40="","",SUMIF('الرصيد الثابت'!$A$2:$A$52,B40,'الرصيد الثابت'!$C$2:$C$52)) ->  | G40: 0
C41: =IF(B41="","",SUMIF('الرصيد الثابت'!$A$2:$A$52,B41,'الرصيد الثابت'!$B$2:$B$52)) ->  | D41: =IF(B41="","",SUMIF('الرصيد الثابت'!$A$2:$A$52,B41,'الرصيد الثابت'!$C$2:$C$52)) ->  | G41: 0
C42: =IF(B42="","",SUMIF('الرصيد الثابت'!$A$2:$A$52,B42,'الرصيد الثابت'!$B$2:$B$52)) ->  | D42: =IF(B42="","",SUMIF('الرصيد الثابت'!$A$2:$A$52,B42,'الرصيد الثابت'!$C$2:$C$52)) ->  | G42: 0
C43: =IF(B43="","",SUMIF('الرصيد الثابت'!$A$2:$A$52,B43,'الرصيد الثابت'!$B$2:$B$52)) ->  | D43: =IF(B43="","",SUMIF('الرصيد الثابت'!$A$2:$A$52,B43,'الرصيد الثابت'!$C$2:$C$52)) ->  | G43: 0
C44: =IF(B44="","",SUMIF('الرصيد الثابت'!$A$2:$A$52,B44,'الرصيد الثابت'!$B$2:$B$52)) ->  | D44: =IF(B44="","",SUMIF('الرصيد الثابت'!$A$2:$A$52,B44,'الرصيد الثابت'!$C$2:$C$52)) ->  | G44: 0
C45: =IF(B45="","",SUMIF('الرصيد الثابت'!$A$2:$A$52,B45,'الرصيد الثابت'!$B$2:$B$52)) ->  | D45: =IF(B45="","",SUMIF('الرصيد الثابت'!$A$2:$A$52,B45,'الرصيد الثابت'!$C$2:$C$52)) ->  | G45: 0
C46: =IF(B46="","",SUMIF('الرصيد الثابت'!$A$2:$A$52,B46,'الرصيد الثابت'!$B$2:$B$52)) ->  | D46: =IF(B46="","",SUMIF('الرصيد الثابت'!$A$2:$A$52,B46,'الرصيد الثابت'!$C$2:$C$52)) ->  | G46: 0
C47: =IF(B47="","",SUMIF('الرصيد الثابت'!$A$2:$A$52,B47,'الرصيد الثابت'!$B$2:$B$52)) ->  | D47: =IF(B47="","",SUMIF('الرصيد الثابت'!$A$2:$A$52,B47,'الرصيد الثابت'!$C$2:$C$52)) ->  | G47: 0
C48: =IF(B48="","",SUMIF('الرصيد الثابت'!$A$2:$A$52,B48,'الرصيد الثابت'!$B$2:$B$52)) ->  | D48: =IF(B48="","",SUMIF('الرصيد الثابت'!$A$2:$A$52,B48,'الرصيد الثابت'!$C$2:$C$52)) ->  | G48: 0
C49: =IF(B49="","",SUMIF('الرصيد الثابت'!$A$2:$A$52,B49,'الرصيد الثابت'!$B$2:$B$52)) ->  | D49: =IF(B49="","",SUMIF('الرصيد الثابت'!$A$2:$A$52,B49,'الرصيد الثابت'!$C$2:$C$52)) ->  | G49: 0
C50: =IF(B50="","",SUMIF('الرصيد الثابت'!$A$2:$A$52,B50,'الرصيد الثابت'!$B$2:$B$52)) ->  | D50: =IF(B50="","",SUMIF('الرصيد الثابت'!$A$2:$A$52,B50,'الرصيد الثابت'!$C$2:$C$52)) ->  | G50: 0
C51: =IF(B51="","",SUMIF('الرصيد الثابت'!$A$2:$A$52,B51,'الرصيد الثابت'!$B$2:$B$52)) ->  | D51: =IF(B51="","",SUMIF('الرصيد الثابت'!$A$2:$A$52,B51,'الرصيد الثابت'!$C$2:$C$52)) ->  | G51: 0
C52: =IF(B52="","",SUMIF('الرصيد الثابت'!$A$2:$A$52,B52,'الرصيد الثابت'!$B$2:$B$52)) ->  | D52: =IF(B52="","",SUMIF('الرصيد الثابت'!$A$2:$A$52,B52,'الرصيد الثابت'!$C$2:$C$52)) ->  | G52: 0
C53: =IF(B53="","",SUMIF('الرصيد الثابت'!$A$2:$A$52,B53,'الرصيد الثابت'!$B$2:$B$52)) ->  | D53: =IF(B53="","",SUMIF('الرصيد الثابت'!$A$2:$A$52,B53,'الرصيد الثابت'!$C$2:$C$52)) ->  | G53: 0
C54: =IF(B54="","",SUMIF('الرصيد الثابت'!$A$2:$A$52,B54,'الرصيد الثابت'!$B$2:$B$52)) ->  | D54: =IF(B54="","",SUMIF('الرصيد الثابت'!$A$2:$A$52,B54,'الرصيد الثابت'!$C$2:$C$52)) ->  | G54: 0
C55: =IF(B55="","",SUMIF('الرصيد الثابت'!$A$2:$A$52,B55,'الرصيد الثابت'!$B$2:$B$52)) ->  | D55: =IF(B55="","",SUMIF('الرصيد الثابت'!$A$2:$A$52,B55,'الرصيد الثابت'!$C$2:$C$52)) ->  | G55: 0
C56: =IF(B56="","",SUMIF('الرصيد الثابت'!$A$2:$A$52,B56,'الرصيد الثابت'!$B$2:$B$52)) ->  | D56: =IF(B56="","",SUMIF('الرصيد الثابت'!$A$2:$A$52,B56,'الرصيد الثابت'!$C$2:$C$52)) ->  | G56: 0
C57: =IF(B57="","",SUMIF('الرصيد الثابت'!$A$2:$A$52,B57,'الرصيد الثابت'!$B$2:$B$52)) ->  | D57: =IF(B57="","",SUMIF('الرصيد الثابت'!$A$2:$A$52,B57,'الرصيد الثابت'!$C$2:$C$52)) ->  | G57: 0
C58: =IF(B58="","",SUMIF('الرصيد الثابت'!$A$2:$A$52,B58,'الرصيد الثابت'!$B$2:$B$52)) ->  | D58: =IF(B58="","",SUMIF('الرصيد الثابت'!$A$2:$A$52,B58,'الرصيد الثابت'!$C$2:$C$52)) ->  | G58: 0
C59: =IF(B59="","",SUMIF('الرصيد الثابت'!$A$2:$A$52,B59,'الرصيد الثابت'!$B$2:$B$52)) ->  | D59: =IF(B59="","",SUMIF('الرصيد الثابت'!$A$2:$A$52,B59,'الرصيد الثابت'!$C$2:$C$52)) ->  | G59: 0
C60: =IF(B60="","",SUMIF('الرصيد الثابت'!$A$2:$A$52,B60,'الرصيد الثابت'!$B$2:$B$52)) ->  | D60: =IF(B60="","",SUMIF('الرصيد الثابت'!$A$2:$A$52,B60,'الرصيد الثابت'!$C$2:$C$52)) ->  | G60: 0
C61: =IF(B61="","",SUMIF('الرصيد الثابت'!$A$2:$A$52,B61,'الرصيد الثابت'!$B$2:$B$52)) ->  | D61: =IF(B61="","",SUMIF('الرصيد الثابت'!$A$2:$A$52,B61,'الرصيد الثابت'!$C$2:$C$52)) ->  | G61: 0
C62: =IF(B62="","",SUMIF('الرصيد الثابت'!$A$2:$A$52,B62,'الرصيد الثابت'!$B$2:$B$52)) ->  | D62: =IF(B62="","",SUMIF('الرصيد الثابت'!$A$2:$A$52,B62,'الرصيد الثابت'!$C$2:$C$52)) ->  | G62: 0
C63: =IF(B63="","",SUMIF('الرصيد الثابت'!$A$2:$A$52,B63,'الرصيد الثابت'!$B$2:$B$52)) ->  | D63: =IF(B63="","",SUMIF('الرصيد الثابت'!$A$2:$A$52,B63,'الرصيد الثابت'!$C$2:$C$52)) ->  | G63: 0
C64: =IF(B64="","",SUMIF('الرصيد الثابت'!$A$2:$A$52,B64,'الرصيد الثابت'!$B$2:$B$52)) ->  | D64: =IF(B64="","",SUMIF('الرصيد الثابت'!$A$2:$A$52,B64,'الرصيد الثابت'!$C$2:$C$52)) ->  | G64: 0
C65: =IF(B65="","",SUMIF('الرصيد الثابت'!$A$2:$A$52,B65,'الرصيد الثابت'!$B$2:$B$52)) ->  | D65: =IF(B65="","",SUMIF('الرصيد الثابت'!$A$2:$A$52,B65,'الرصيد الثابت'!$C$2:$C$52)) ->  | G65: 0
C66: =IF(B66="","",SUMIF('الرصيد الثابت'!$A$2:$A$52,B66,'الرصيد الثابت'!$B$2:$B$52)) ->  | D66: =IF(B66="","",SUMIF('الرصيد الثابت'!$A$2:$A$52,B66,'الرصيد الثابت'!$C$2:$C$52)) ->  | G66: 0
C67: =IF(B67="","",SUMIF('الرصيد الثابت'!$A$2:$A$52,B67,'الرصيد الثابت'!$B$2:$B$52)) ->  | D67: =IF(B67="","",SUMIF('الرصيد الثابت'!$A$2:$A$52,B67,'الرصيد الثابت'!$C$2:$C$52)) ->  | G67: 0
A68: =IF(B68="","",TODAY()) ->  | C68: =IF(B68="","",SUMIF('الرصيد الثابت'!$A$2:$A$52,B68,'الرصيد الثابت'!$B$2:$B$52)) ->  | D68: =IF(B68="","",SUMIF('الرصيد الثابت'!$A$2:$A$52,B68,'الرصيد الثابت'!$C$2:$C$52)) ->  | G68: =SUM(E68-F68) -> 0
C69: =IF(B69="","",SUMIF('الرصيد الثابت'!$A$2:$A$52,B69,'الرصيد الثابت'!$B$2:$B$52)) ->  | D69: =IF(B69="","",SUMIF('الرصيد الثابت'!$A$2:$A$52,B69,'الرصيد الثابت'!$C$2:$C$52)) ->  | G69: 0
C70: =IF(B70="","",SUMIF('الرصيد الثابت'!$A$2:$A$52,B70,'الرصيد الثابت'!$B$2:$B$52)) ->  | D70: =IF(B70="","",SUMIF('الرصيد الثابت'!$A$2:$A$52,B70,'الرصيد الثابت'!$C$2:$C$52)) ->  | G70: 0
C71: =IF(B71="","",SUMIF('الرصيد الثابت'!$A$2:$A$52,B71,'الرصيد الثابت'!$B$2:$B$52)) ->  | D71: =IF(B71="","",SUMIF('الرصيد الثابت'!$A$2:$A$52,B71,'الرصيد الثابت'!$C$2:$C$52)) ->  | G71: 0
C72: =IF(B72="","",SUMIF('الرصيد الثابت'!$A$2:$A$52,B72,'الرصيد الثابت'!$B$2:$B$52)) ->  | D72: =IF(B72="","",SUMIF('الرصيد الثابت'!$A$2:$A$52,B72,'الرصيد الثابت'!$C$2:$C$52)) ->  | G72: 0
C73: =IF(B73="","",SUMIF('الرصيد الثابت'!$A$2:$A$52,B73,'الرصيد الثابت'!$B$2:$B$52)) ->  | D73: =IF(B73="","",SUMIF('الرصيد الثابت'!$A$2:$A$52,B73,'الرصيد الثابت'!$C$2:$C$52)) ->  | G73: 0
C74: =IF(B74="","",SUMIF('الرصيد الثابت'!$A$2:$A$52,B74,'الرصيد الثابت'!$B$2:$B$52)) ->  | D74: =IF(B74="","",SUMIF('الرصيد الثابت'!$A$2:$A$52,B74,'الرصيد الثابت'!$C$2:$C$52)) ->  | G74: 0
C75: =IF(B75="","",SUMIF('الرصيد الثابت'!$A$2:$A$52,B75,'الرصيد الثابت'!$B$2:$B$52)) ->  | D75: =IF(B75="","",SUMIF('الرصيد الثابت'!$A$2:$A$52,B75,'الرصيد الثابت'!$C$2:$C$52)) ->  | G75: 0
C76: =IF(B76="","",SUMIF('الرصيد الثابت'!$A$2:$A$52,B76,'الرصيد الثابت'!$B$2:$B$52)) ->  | D76: =IF(B76="","",SUMIF('الرصيد الثابت'!$A$2:$A$52,B76,'الرصيد الثابت'!$C$2:$C$52)) ->  | G76: 0
C77: =IF(B77="","",SUMIF('الرصيد الثابت'!$A$2:$A$52,B77,'الرصيد الثابت'!$B$2:$B$52)) ->  | D77: =IF(B77="","",SUMIF('الرصيد الثابت'!$A$2:$A$52,B77,'الرصيد الثابت'!$C$2:$C$52)) ->  | G77: 0
C78: =IF(B78="","",SUMIF('الرصيد الثابت'!$A$2:$A$52,B78,'الرصيد الثابت'!$B$2:$B$52)) ->  | D78: =IF(B78="","",SUMIF('الرصيد الثابت'!$A$2:$A$52,B78,'الرصيد الثابت'!$C$2:$C$52)) ->  | G78: 0
C79: =IF(B79="","",SUMIF('الرصيد الثابت'!$A$2:$A$52,B79,'الرصيد الثابت'!$B$2:$B$52)) ->  | D79: =IF(B79="","",SUMIF('الرصيد الثابت'!$A$2:$A$52,B79,'الرصيد الثابت'!$C$2:$C$52)) ->  | G79: 0
C80: =IF(B80="","",SUMIF('الرصيد الثابت'!$A$2:$A$52,B80,'الرصيد الثابت'!$B$2:$B$52)) ->  | D80: =IF(B80="","",SUMIF('الرصيد الثابت'!$A$2:$A$52,B80,'الرصيد الثابت'!$C$2:$C$52)) ->  | G80: 0
C81: =IF(B81="","",SUMIF('الرصيد الثابت'!$A$2:$A$52,B81,'الرصيد الثابت'!$B$2:$B$52)) ->  | D81: =IF(B81="","",SUMIF('الرصيد الثابت'!$A$2:$A$52,B81,'الرصيد الثابت'!$C$2:$C$52)) ->  | G81: 0
C82: =IF(B82="","",SUMIF('الرصيد الثابت'!$A$2:$A$52,B82,'الرصيد الثابت'!$B$2:$B$52)) ->  | D82: =IF(B82="","",SUMIF('الرصيد الثابت'!$A$2:$A$52,B82,'الرصيد الثابت'!$C$2:$C$52)) ->  | G82: 0
C83: =IF(B83="","",SUMIF('الرصيد الثابت'!$A$2:$A$52,B83,'الرصيد الثابت'!$B$2:$B$52)) ->  | D83: =IF(B83="","",SUMIF('الرصيد الثابت'!$A$2:$A$52,B83,'الرصيد الثابت'!$C$2:$C$52)) ->  | G83: 0
C84: =IF(B84="","",SUMIF('الرصيد الثابت'!$A$2:$A$52,B84,'الرصيد الثابت'!$B$2:$B$52)) ->  | D84: =IF(B84="","",SUMIF('الرصيد الثابت'!$A$2:$A$52,B84,'الرصيد الثابت'!$C$2:$C$52)) ->  | G84: 0
C85: =IF(B85="","",SUMIF('الرصيد الثابت'!$A$2:$A$52,B85,'الرصيد الثابت'!$B$2:$B$52)) ->  | D85: =IF(B85="","",SUMIF('الرصيد الثابت'!$A$2:$A$52,B85,'الرصيد الثابت'!$C$2:$C$52)) ->  | G85: 0
C86: =IF(B86="","",SUMIF('الرصيد الثابت'!$A$2:$A$52,B86,'الرصيد الثابت'!$B$2:$B$52)) ->  | D86: =IF(B86="","",SUMIF('الرصيد الثابت'!$A$2:$A$52,B86,'الرصيد الثابت'!$C$2:$C$52)) ->  | G86: 0
C87: =IF(B87="","",SUMIF('الرصيد الثابت'!$A$2:$A$52,B87,'الرصيد الثابت'!$B$2:$B$52)) ->  | D87: =IF(B87="","",SUMIF('الرصيد الثابت'!$A$2:$A$52,B87,'الرصيد الثابت'!$C$2:$C$52)) ->  | G87: 0
C88: =IF(B88="","",SUMIF('الرصيد الثابت'!$A$2:$A$52,B88,'الرصيد الثابت'!$B$2:$B$52)) ->  | D88: =IF(B88="","",SUMIF('الرصيد الثابت'!$A$2:$A$52,B88,'الرصيد الثابت'!$C$2:$C$52)) ->  | G88: 0
C89: =IF(B89="","",SUMIF('الرصيد الثابت'!$A$2:$A$52,B89,'الرصيد الثابت'!$B$2:$B$52)) ->  | D89: =IF(B89="","",SUMIF('الرصيد الثابت'!$A$2:$A$52,B89,'الرصيد الثابت'!$C$2:$C$52)) ->  | G89: 0
C90: =IF(B90="","",SUMIF('الرصيد الثابت'!$A$2:$A$52,B90,'الرصيد الثابت'!$B$2:$B$52)) ->  | D90: =IF(B90="","",SUMIF('الرصيد الثابت'!$A$2:$A$52,B90,'الرصيد الثابت'!$C$2:$C$52)) ->  | G90: 0
C91: =IF(B91="","",SUMIF('الرصيد الثابت'!$A$2:$A$52,B91,'الرصيد الثابت'!$B$2:$B$52)) ->  | D91: =IF(B91="","",SUMIF('الرصيد الثابت'!$A$2:$A$52,B91,'الرصيد الثابت'!$C$2:$C$52)) ->  | G91: 0
C92: =IF(B92="","",SUMIF('الرصيد الثابت'!$A$2:$A$52,B92,'الرصيد الثابت'!$B$2:$B$52)) ->  | D92: =IF(B92="","",SUMIF('الرصيد الثابت'!$A$2:$A$52,B92,'الرصيد الثابت'!$C$2:$C$52)) ->  | G92: 0
C93: =IF(B93="","",SUMIF('الرصيد الثابت'!$A$2:$A$52,B93,'الرصيد الثابت'!$B$2:$B$52)) ->  | D93: =IF(B93="","",SUMIF('الرصيد الثابت'!$A$2:$A$52,B93,'الرصيد الثابت'!$C$2:$C$52)) ->  | G93: 0
C94: =IF(B94="","",SUMIF('الرصيد الثابت'!$A$2:$A$52,B94,'الرصيد الثابت'!$B$2:$B$52)) ->  | D94: =IF(B94="","",SUMIF('الرصيد الثابت'!$A$2:$A$52,B94,'الرصيد الثابت'!$C$2:$C$52)) ->  | G94: 0
C95: =IF(B95="","",SUMIF('الرصيد الثابت'!$A$2:$A$52,B95,'الرصيد الثابت'!$B$2:$B$52)) ->  | D95: =IF(B95="","",SUMIF('الرصيد الثابت'!$A$2:$A$52,B95,'الرصيد الثابت'!$C$2:$C$52)) ->  | G95: 0
C96: =IF(B96="","",SUMIF('الرصيد الثابت'!$A$2:$A$52,B96,'الرصيد الثابت'!$B$2:$B$52)) ->  | D96: =IF(B96="","",SUMIF('الرصيد الثابت'!$A$2:$A$52,B96,'الرصيد الثابت'!$C$2:$C$52)) ->  | G96: 0
C97: =IF(B97="","",SUMIF('الرصيد الثابت'!$A$2:$A$52,B97,'الرصيد الثابت'!$B$2:$B$52)) ->  | D97: =IF(B97="","",SUMIF('الرصيد الثابت'!$A$2:$A$52,B97,'الرصيد الثابت'!$C$2:$C$52)) ->  | G97: 0
C98: =IF(B98="","",SUMIF('الرصيد الثابت'!$A$2:$A$52,B98,'الرصيد الثابت'!$B$2:$B$52)) ->  | D98: =IF(B98="","",SUMIF('الرصيد الثابت'!$A$2:$A$52,B98,'الرصيد الثابت'!$C$2:$C$52)) ->  | G98: 0
C99: =IF(B99="","",SUMIF('الرصيد الثابت'!$A$2:$A$52,B99,'الرصيد الثابت'!$B$2:$B$52)) ->  | D99: =IF(B99="","",SUMIF('الرصيد الثابت'!$A$2:$A$52,B99,'الرصيد الثابت'!$C$2:$C$52)) ->  | G99: 0
C100: =IF(B100="","",SUMIF('الرصيد الثابت'!$A$2:$A$52,B100,'الرصيد الثابت'!$B$2:$B$52)) ->  | D100: =IF(B100="","",SUMIF('الرصيد الثابت'!$A$2:$A$52,B100,'الرصيد الثابت'!$C$2:$C$52)) ->  | G100: 0
C101: =IF(B101="","",SUMIF('الرصيد الثابت'!$A$2:$A$52,B101,'الرصيد الثابت'!$B$2:$B$52)) ->  | D101: =IF(B101="","",SUMIF('الرصيد الثابت'!$A$2:$A$52,B101,'الرصيد الثابت'!$C$2:$C$52)) ->  | G101: 0
C102: =IF(B102="","",SUMIF('الرصيد الثابت'!$A$2:$A$52,B102,'الرصيد الثابت'!$B$2:$B$52)) ->  | D102: =IF(B102="","",SUMIF('الرصيد الثابت'!$A$2:$A$52,B102,'الرصيد الثابت'!$C$2:$C$52)) ->  | G102: 0
C103: =IF(B103="","",SUMIF('الرصيد الثابت'!$A$2:$A$52,B103,'الرصيد الثابت'!$B$2:$B$52)) ->  | D103: =IF(B103="","",SUMIF('الرصيد الثابت'!$A$2:$A$52,B103,'الرصيد الثابت'!$C$2:$C$52)) ->  | G103: 0
C104: =IF(B104="","",SUMIF('الرصيد الثابت'!$A$2:$A$52,B104,'الرصيد الثابت'!$B$2:$B$52)) ->  | D104: =IF(B104="","",SUMIF('الرصيد الثابت'!$A$2:$A$52,B104,'الرصيد الثابت'!$C$2:$C$52)) ->  | G104: 0
C105: =IF(B105="","",SUMIF('الرصيد الثابت'!$A$2:$A$52,B105,'الرصيد الثابت'!$B$2:$B$52)) ->  | D105: =IF(B105="","",SUMIF('الرصيد الثابت'!$A$2:$A$52,B105,'الرصيد الثابت'!$C$2:$C$52)) ->  | G105: 0
C106: =IF(B106="","",SUMIF('الرصيد الثابت'!$A$2:$A$52,B106,'الرصيد الثابت'!$B$2:$B$52)) ->  | D106: =IF(B106="","",SUMIF('الرصيد الثابت'!$A$2:$A$52,B106,'الرصيد الثابت'!$C$2:$C$52)) ->  | G106: 0
C107: =IF(B107="","",SUMIF('الرصيد الثابت'!$A$2:$A$52,B107,'الرصيد الثابت'!$B$2:$B$52)) ->  | D107: =IF(B107="","",SUMIF('الرصيد الثابت'!$A$2:$A$52,B107,'الرصيد الثابت'!$C$2:$C$52)) ->  | G107: 0
C108: =IF(B108="","",SUMIF('الرصيد الثابت'!$A$2:$A$52,B108,'الرصيد الثابت'!$B$2:$B$52)) ->  | D108: =IF(B108="","",SUMIF('الرصيد الثابت'!$A$2:$A$52,B108,'الرصيد الثابت'!$C$2:$C$52)) ->  | G108: 0
C109: =IF(B109="","",SUMIF('الرصيد الثابت'!$A$2:$A$52,B109,'الرصيد الثابت'!$B$2:$B$52)) ->  | D109: =IF(B109="","",SUMIF('الرصيد الثابت'!$A$2:$A$52,B109,'الرصيد الثابت'!$C$2:$C$52)) ->  | G109: 0
C110: =IF(B110="","",SUMIF('الرصيد الثابت'!$A$2:$A$52,B110,'الرصيد الثابت'!$B$2:$B$52)) ->  | D110: =IF(B110="","",SUMIF('الرصيد الثابت'!$A$2:$A$52,B110,'الرصيد الثابت'!$C$2:$C$52)) ->  | G110: 0
C111: =IF(B111="","",SUMIF('الرصيد الثابت'!$A$2:$A$52,B111,'الرصيد الثابت'!$B$2:$B$52)) ->  | D111: =IF(B111="","",SUMIF('الرصيد الثابت'!$A$2:$A$52,B111,'الرصيد الثابت'!$C$2:$C$52)) ->  | G111: 0
C112: =IF(B112="","",SUMIF('الرصيد الثابت'!$A$2:$A$52,B112,'الرصيد الثابت'!$B$2:$B$52)) ->  | D112: =IF(B112="","",SUMIF('الرصيد الثابت'!$A$2:$A$52,B112,'الرصيد الثابت'!$C$2:$C$52)) ->  | G112: 0
C113: =IF(B113="","",SUMIF('الرصيد الثابت'!$A$2:$A$52,B113,'الرصيد الثابت'!$B$2:$B$52)) ->  | D113: =IF(B113="","",SUMIF('الرصيد الثابت'!$A$2:$A$52,B113,'الرصيد الثابت'!$C$2:$C$52)) ->  | G113: 0
C114: =IF(B114="","",SUMIF('الرصيد الثابت'!$A$2:$A$52,B114,'الرصيد الثابت'!$B$2:$B$52)) ->  | D114: =IF(B114="","",SUMIF('الرصيد الثابت'!$A$2:$A$52,B114,'الرصيد الثابت'!$C$2:$C$52)) ->  | G114: 0
C115: =IF(B115="","",SUMIF('الرصيد الثابت'!$A$2:$A$52,B115,'الرصيد الثابت'!$B$2:$B$52)) ->  | D115: =IF(B115="","",SUMIF('الرصيد الثابت'!$A$2:$A$52,B115,'الرصيد الثابت'!$C$2:$C$52)) ->  | G115: 0
C116: =IF(B116="","",SUMIF('الرصيد الثابت'!$A$2:$A$52,B116,'الرصيد الثابت'!$B$2:$B$52)) ->  | D116: =IF(B116="","",SUMIF('الرصيد الثابت'!$A$2:$A$52,B116,'الرصيد الثابت'!$C$2:$C$52)) ->  | G116: 0
C117: =IF(B117="","",SUMIF('الرصيد الثابت'!$A$2:$A$52,B117,'الرصيد الثابت'!$B$2:$B$52)) ->  | D117: =IF(B117="","",SUMIF('الرصيد الثابت'!$A$2:$A$52,B117,'الرصيد الثابت'!$C$2:$C$52)) ->  | G117: 0
C118: =IF(B118="","",SUMIF('الرصيد الثابت'!$A$2:$A$52,B118,'الرصيد الثابت'!$B$2:$B$52)) ->  | D118: =IF(B118="","",SUMIF('الرصيد الثابت'!$A$2:$A$52,B118,'الرصيد الثابت'!$C$2:$C$52)) ->  | G118: 0
C119: =IF(B119="","",SUMIF('الرصيد الثابت'!$A$2:$A$52,B119,'الرصيد الثابت'!$B$2:$B$52)) ->  | D119: =IF(B119="","",SUMIF('الرصيد الثابت'!$A$2:$A$52,B119,'الرصيد الثابت'!$C$2:$C$52)) ->  | G119: 0
C120: =IF(B120="","",SUMIF('الرصيد الثابت'!$A$2:$A$52,B120,'الرصيد الثابت'!$B$2:$B$52)) ->  | D120: =IF(B120="","",SUMIF('الرصيد الثابت'!$A$2:$A$52,B120,'الرصيد الثابت'!$C$2:$C$52)) ->  | G120: 0
C121: =IF(B121="","",SUMIF('الرصيد الثابت'!$A$2:$A$52,B121,'الرصيد الثابت'!$B$2:$B$52)) ->  | D121: =IF(B121="","",SUMIF('الرصيد الثابت'!$A$2:$A$52,B121,'الرصيد الثابت'!$C$2:$C$52)) ->  | G121: 0
C122: =IF(B122="","",SUMIF('الرصيد الثابت'!$A$2:$A$52,B122,'الرصيد الثابت'!$B$2:$B$52)) ->  | D122: =IF(B122="","",SUMIF('الرصيد الثابت'!$A$2:$A$52,B122,'الرصيد الثابت'!$C$2:$C$52)) ->  | G122: 0
C123: =IF(B123="","",SUMIF('الرصيد الثابت'!$A$2:$A$52,B123,'الرصيد الثابت'!$B$2:$B$52)) ->  | D123: =IF(B123="","",SUMIF('الرصيد الثابت'!$A$2:$A$52,B123,'الرصيد الثابت'!$C$2:$C$52)) ->  | G123: 0
C124: =IF(B124="","",SUMIF('الرصيد الثابت'!$A$2:$A$52,B124,'الرصيد الثابت'!$B$2:$B$52)) ->  | D124: =IF(B124="","",SUMIF('الرصيد الثابت'!$A$2:$A$52,B124,'الرصيد الثابت'!$C$2:$C$52)) ->  | G124: 0
C125: =IF(B125="","",SUMIF('الرصيد الثابت'!$A$2:$A$52,B125,'الرصيد الثابت'!$B$2:$B$52)) ->  | D125: =IF(B125="","",SUMIF('الرصيد الثابت'!$A$2:$A$52,B125,'الرصيد الثابت'!$C$2:$C$52)) ->  | G125: 0
C126: =IF(B126="","",SUMIF('الرصيد الثابت'!$A$2:$A$52,B126,'الرصيد الثابت'!$B$2:$B$52)) ->  | D126: =IF(B126="","",SUMIF('الرصيد الثابت'!$A$2:$A$52,B126,'الرصيد الثابت'!$C$2:$C$52)) ->  | G126: 0
C127: =IF(B127="","",SUMIF('الرصيد الثابت'!$A$2:$A$52,B127,'الرصيد الثابت'!$B$2:$B$52)) ->  | D127: =IF(B127="","",SUMIF('الرصيد الثابت'!$A$2:$A$52,B127,'الرصيد الثابت'!$C$2:$C$52)) ->  | G127: 0
C128: =IF(B128="","",SUMIF('الرصيد الثابت'!$A$2:$A$52,B128,'الرصيد الثابت'!$B$2:$B$52)) ->  | D128: =IF(B128="","",SUMIF('الرصيد الثابت'!$A$2:$A$52,B128,'الرصيد الثابت'!$C$2:$C$52)) ->  | G128: 0
C129: =IF(B129="","",SUMIF('الرصيد الثابت'!$A$2:$A$52,B129,'الرصيد الثابت'!$B$2:$B$52)) ->  | D129: =IF(B129="","",SUMIF('الرصيد الثابت'!$A$2:$A$52,B129,'الرصيد الثابت'!$C$2:$C$52)) ->  | G129: 0
C130: =IF(B130="","",SUMIF('الرصيد الثابت'!$A$2:$A$52,B130,'الرصيد الثابت'!$B$2:$B$52)) ->  | D130: =IF(B130="","",SUMIF('الرصيد الثابت'!$A$2:$A$52,B130,'الرصيد الثابت'!$C$2:$C$52)) ->  | G130: 0
C131: =IF(B131="","",SUMIF('الرصيد الثابت'!$A$2:$A$52,B131,'الرصيد الثابت'!$B$2:$B$52)) ->  | D131: =IF(B131="","",SUMIF('الرصيد الثابت'!$A$2:$A$52,B131,'الرصيد الثابت'!$C$2:$C$52)) ->  | G131: 0
A132: =IF(B132="","",TODAY()) ->  | C132: =IF(B132="","",SUMIF('الرصيد الثابت'!$A$2:$A$52,B132,'الرصيد الثابت'!$B$2:$B$52)) ->  | D132: =IF(B132="","",SUMIF('الرصيد الثابت'!$A$2:$A$52,B132,'الرصيد الثابت'!$C$2:$C$52)) ->  | G132: =SUM(E132-F132) -> 0
C133: =IF(B133="","",SUMIF('الرصيد الثابت'!$A$2:$A$52,B133,'الرصيد الثابت'!$B$2:$B$52)) ->  | D133: =IF(B133="","",SUMIF('الرصيد الثابت'!$A$2:$A$52,B133,'الرصيد الثابت'!$C$2:$C$52)) ->  | G133: 0
C134: =IF(B134="","",SUMIF('الرصيد الثابت'!$A$2:$A$52,B134,'الرصيد الثابت'!$B$2:$B$52)) ->  | D134: =IF(B134="","",SUMIF('الرصيد الثابت'!$A$2:$A$52,B134,'الرصيد الثابت'!$C$2:$C$52)) ->  | G134: 0
C135: =IF(B135="","",SUMIF('الرصيد الثابت'!$A$2:$A$52,B135,'الرصيد الثابت'!$B$2:$B$52)) ->  | D135: =IF(B135="","",SUMIF('الرصيد الثابت'!$A$2:$A$52,B135,'الرصيد الثابت'!$C$2:$C$52)) ->  | G135: 0
C136: =IF(B136="","",SUMIF('الرصيد الثابت'!$A$2:$A$52,B136,'الرصيد الثابت'!$B$2:$B$52)) ->  | D136: =IF(B136="","",SUMIF('الرصيد الثابت'!$A$2:$A$52,B136,'الرصيد الثابت'!$C$2:$C$52)) ->  | G136: 0
C137: =IF(B137="","",SUMIF('الرصيد الثابت'!$A$2:$A$52,B137,'الرصيد الثابت'!$B$2:$B$52)) ->  | D137: =IF(B137="","",SUMIF('الرصيد الثابت'!$A$2:$A$52,B137,'الرصيد الثابت'!$C$2:$C$52)) ->  | G137: 0
C138: =IF(B138="","",SUMIF('الرصيد الثابت'!$A$2:$A$52,B138,'الرصيد الثابت'!$B$2:$B$52)) ->  | D138: =IF(B138="","",SUMIF('الرصيد الثابت'!$A$2:$A$52,B138,'الرصيد الثابت'!$C$2:$C$52)) ->  | G138: 0
C139: =IF(B139="","",SUMIF('الرصيد الثابت'!$A$2:$A$52,B139,'الرصيد الثابت'!$B$2:$B$52)) ->  | D139: =IF(B139="","",SUMIF('الرصيد الثابت'!$A$2:$A$52,B139,'الرصيد الثابت'!$C$2:$C$52)) ->  | G139: 0
C140: =IF(B140="","",SUMIF('الرصيد الثابت'!$A$2:$A$52,B140,'الرصيد الثابت'!$B$2:$B$52)) ->  | D140: =IF(B140="","",SUMIF('الرصيد الثابت'!$A$2:$A$52,B140,'الرصيد الثابت'!$C$2:$C$52)) ->  | G140: 0
C141: =IF(B141="","",SUMIF('الرصيد الثابت'!$A$2:$A$52,B141,'الرصيد الثابت'!$B$2:$B$52)) ->  | D141: =IF(B141="","",SUMIF('الرصيد الثابت'!$A$2:$A$52,B141,'الرصيد الثابت'!$C$2:$C$52)) ->  | G141: 0
C142: =IF(B142="","",SUMIF('الرصيد الثابت'!$A$2:$A$52,B142,'الرصيد الثابت'!$B$2:$B$52)) ->  | D142: =IF(B142="","",SUMIF('الرصيد الثابت'!$A$2:$A$52,B142,'الرصيد الثابت'!$C$2:$C$52)) ->  | G142: 0
C143: =IF(B143="","",SUMIF('الرصيد الثابت'!$A$2:$A$52,B143,'الرصيد الثابت'!$B$2:$B$52)) ->  | D143: =IF(B143="","",SUMIF('الرصيد الثابت'!$A$2:$A$52,B143,'الرصيد الثابت'!$C$2:$C$52)) ->  | G143: 0
C144: =IF(B144="","",SUMIF('الرصيد الثابت'!$A$2:$A$52,B144,'الرصيد الثابت'!$B$2:$B$52)) ->  | D144: =IF(B144="","",SUMIF('الرصيد الثابت'!$A$2:$A$52,B144,'الرصيد الثابت'!$C$2:$C$52)) ->  | G144: 0
C145: =IF(B145="","",SUMIF('الرصيد الثابت'!$A$2:$A$52,B145,'الرصيد الثابت'!$B$2:$B$52)) ->  | D145: =IF(B145="","",SUMIF('الرصيد الثابت'!$A$2:$A$52,B145,'الرصيد الثابت'!$C$2:$C$52)) ->  | G145: 0
C146: =IF(B146="","",SUMIF('الرصيد الثابت'!$A$2:$A$52,B146,'الرصيد الثابت'!$B$2:$B$52)) ->  | D146: =IF(B146="","",SUMIF('الرصيد الثابت'!$A$2:$A$52,B146,'الرصيد الثابت'!$C$2:$C$52)) ->  | G146: 0
C147: =IF(B147="","",SUMIF('الرصيد الثابت'!$A$2:$A$52,B147,'الرصيد الثابت'!$B$2:$B$52)) ->  | D147: =IF(B147="","",SUMIF('الرصيد الثابت'!$A$2:$A$52,B147,'الرصيد الثابت'!$C$2:$C$52)) ->  | G147: 0
C148: =IF(B148="","",SUMIF('الرصيد الثابت'!$A$2:$A$52,B148,'الرصيد الثابت'!$B$2:$B$52)) ->  | D148: =IF(B148="","",SUMIF('الرصيد الثابت'!$A$2:$A$52,B148,'الرصيد الثابت'!$C$2:$C$52)) ->  | G148: 0
C149: =IF(B149="","",SUMIF('الرصيد الثابت'!$A$2:$A$52,B149,'الرصيد الثابت'!$B$2:$B$52)) ->  | D149: =IF(B149="","",SUMIF('الرصيد الثابت'!$A$2:$A$52,B149,'الرصيد الثابت'!$C$2:$C$52)) ->  | G149: 0
C150: =IF(B150="","",SUMIF('الرصيد الثابت'!$A$2:$A$52,B150,'الرصيد الثابت'!$B$2:$B$52)) ->  | D150: =IF(B150="","",SUMIF('الرصيد الثابت'!$A$2:$A$52,B150,'الرصيد الثابت'!$C$2:$C$52)) ->  | G150: 0
C151: =IF(B151="","",SUMIF('الرصيد الثابت'!$A$2:$A$52,B151,'الرصيد الثابت'!$B$2:$B$52)) ->  | D151: =IF(B151="","",SUMIF('الرصيد الثابت'!$A$2:$A$52,B151,'الرصيد الثابت'!$C$2:$C$52)) ->  | G151: 0
C152: =IF(B152="","",SUMIF('الرصيد الثابت'!$A$2:$A$52,B152,'الرصيد الثابت'!$B$2:$B$52)) ->  | D152: =IF(B152="","",SUMIF('الرصيد الثابت'!$A$2:$A$52,B152,'الرصيد الثابت'!$C$2:$C$52)) ->  | G152: 0
C153: =IF(B153="","",SUMIF('الرصيد الثابت'!$A$2:$A$52,B153,'الرصيد الثابت'!$B$2:$B$52)) ->  | D153: =IF(B153="","",SUMIF('الرصيد الثابت'!$A$2:$A$52,B153,'الرصيد الثابت'!$C$2:$C$52)) ->  | G153: 0
C154: =IF(B154="","",SUMIF('الرصيد الثابت'!$A$2:$A$52,B154,'الرصيد الثابت'!$B$2:$B$52)) ->  | D154: =IF(B154="","",SUMIF('الرصيد الثابت'!$A$2:$A$52,B154,'الرصيد الثابت'!$C$2:$C$52)) ->  | G154: 0
C155: =IF(B155="","",SUMIF('الرصيد الثابت'!$A$2:$A$52,B155,'الرصيد الثابت'!$B$2:$B$52)) ->  | D155: =IF(B155="","",SUMIF('الرصيد الثابت'!$A$2:$A$52,B155,'الرصيد الثابت'!$C$2:$C$52)) ->  | G155: 0
C156: =IF(B156="","",SUMIF('الرصيد الثابت'!$A$2:$A$52,B156,'الرصيد الثابت'!$B$2:$B$52)) ->  | D156: =IF(B156="","",SUMIF('الرصيد الثابت'!$A$2:$A$52,B156,'الرصيد الثابت'!$C$2:$C$52)) ->  | G156: 0
C157: =IF(B157="","",SUMIF('الرصيد الثابت'!$A$2:$A$52,B157,'الرصيد الثابت'!$B$2:$B$52)) ->  | D157: =IF(B157="","",SUMIF('الرصيد الثابت'!$A$2:$A$52,B157,'الرصيد الثابت'!$C$2:$C$52)) ->  | G157: 0
C158: =IF(B158="","",SUMIF('الرصيد الثابت'!$A$2:$A$52,B158,'الرصيد الثابت'!$B$2:$B$52)) ->  | D158: =IF(B158="","",SUMIF('الرصيد الثابت'!$A$2:$A$52,B158,'الرصيد الثابت'!$C$2:$C$52)) ->  | G158: 0
C159: =IF(B159="","",SUMIF('الرصيد الثابت'!$A$2:$A$52,B159,'الرصيد الثابت'!$B$2:$B$52)) ->  | D159: =IF(B159="","",SUMIF('الرصيد الثابت'!$A$2:$A$52,B159,'الرصيد الثابت'!$C$2:$C$52)) ->  | G159: 0
C160: =IF(B160="","",SUMIF('الرصيد الثابت'!$A$2:$A$52,B160,'الرصيد الثابت'!$B$2:$B$52)) ->  | D160: =IF(B160="","",SUMIF('الرصيد الثابت'!$A$2:$A$52,B160,'الرصيد الثابت'!$C$2:$C$52)) ->  | G160: 0
C161: =IF(B161="","",SUMIF('الرصيد الثابت'!$A$2:$A$52,B161,'الرصيد الثابت'!$B$2:$B$52)) ->  | D161: =IF(B161="","",SUMIF('الرصيد الثابت'!$A$2:$A$52,B161,'الرصيد الثابت'!$C$2:$C$52)) ->  | G161: 0
C162: =IF(B162="","",SUMIF('الرصيد الثابت'!$A$2:$A$52,B162,'الرصيد الثابت'!$B$2:$B$52)) ->  | D162: =IF(B162="","",SUMIF('الرصيد الثابت'!$A$2:$A$52,B162,'الرصيد الثابت'!$C$2:$C$52)) ->  | G162: 0
C163: =IF(B163="","",SUMIF('الرصيد الثابت'!$A$2:$A$52,B163,'الرصيد الثابت'!$B$2:$B$52)) ->  | D163: =IF(B163="","",SUMIF('الرصيد الثابت'!$A$2:$A$52,B163,'الرصيد الثابت'!$C$2:$C$52)) ->  | G163: 0
C164: =IF(B164="","",SUMIF('الرصيد الثابت'!$A$2:$A$52,B164,'الرصيد الثابت'!$B$2:$B$52)) ->  | D164: =IF(B164="","",SUMIF('الرصيد الثابت'!$A$2:$A$52,B164,'الرصيد الثابت'!$C$2:$C$52)) ->  | G164: 0
C165: =IF(B165="","",SUMIF('الرصيد الثابت'!$A$2:$A$52,B165,'الرصيد الثابت'!$B$2:$B$52)) ->  | D165: =IF(B165="","",SUMIF('الرصيد الثابت'!$A$2:$A$52,B165,'الرصيد الثابت'!$C$2:$C$52)) ->  | G165: 0
C166: =IF(B166="","",SUMIF('الرصيد الثابت'!$A$2:$A$52,B166,'الرصيد الثابت'!$B$2:$B$52)) ->  | D166: =IF(B166="","",SUMIF('الرصيد الثابت'!$A$2:$A$52,B166,'الرصيد الثابت'!$C$2:$C$52)) ->  | G166: 0
C167: =IF(B167="","",SUMIF('الرصيد الثابت'!$A$2:$A$52,B167,'الرصيد الثابت'!$B$2:$B$52)) ->  | D167: =IF(B167="","",SUMIF('الرصيد الثابت'!$A$2:$A$52,B167,'الرصيد الثابت'!$C$2:$C$52)) ->  | G167: 0
C168: =IF(B168="","",SUMIF('الرصيد الثابت'!$A$2:$A$52,B168,'الرصيد الثابت'!$B$2:$B$52)) ->  | D168: =IF(B168="","",SUMIF('الرصيد الثابت'!$A$2:$A$52,B168,'الرصيد الثابت'!$C$2:$C$52)) ->  | G168: 0
C169: =IF(B169="","",SUMIF('الرصيد الثابت'!$A$2:$A$52,B169,'الرصيد الثابت'!$B$2:$B$52)) ->  | D169: =IF(B169="","",SUMIF('الرصيد الثابت'!$A$2:$A$52,B169,'الرصيد الثابت'!$C$2:$C$52)) ->  | G169: 0
C170: =IF(B170="","",SUMIF('الرصيد الثابت'!$A$2:$A$52,B170,'الرصيد الثابت'!$B$2:$B$52)) ->  | D170: =IF(B170="","",SUMIF('الرصيد الثابت'!$A$2:$A$52,B170,'الرصيد الثابت'!$C$2:$C$52)) ->  | G170: 0
C171: =IF(B171="","",SUMIF('الرصيد الثابت'!$A$2:$A$52,B171,'الرصيد الثابت'!$B$2:$B$52)) ->  | D171: =IF(B171="","",SUMIF('الرصيد الثابت'!$A$2:$A$52,B171,'الرصيد الثابت'!$C$2:$C$52)) ->  | G171: 0
C172: =IF(B172="","",SUMIF('الرصيد الثابت'!$A$2:$A$52,B172,'الرصيد الثابت'!$B$2:$B$52)) ->  | D172: =IF(B172="","",SUMIF('الرصيد الثابت'!$A$2:$A$52,B172,'الرصيد الثابت'!$C$2:$C$52)) ->  | G172: 0
C173: =IF(B173="","",SUMIF('الرصيد الثابت'!$A$2:$A$52,B173,'الرصيد الثابت'!$B$2:$B$52)) ->  | D173: =IF(B173="","",SUMIF('الرصيد الثابت'!$A$2:$A$52,B173,'الرصيد الثابت'!$C$2:$C$52)) ->  | G173: 0
C174: =IF(B174="","",SUMIF('الرصيد الثابت'!$A$2:$A$52,B174,'الرصيد الثابت'!$B$2:$B$52)) ->  | D174: =IF(B174="","",SUMIF('الرصيد الثابت'!$A$2:$A$52,B174,'الرصيد الثابت'!$C$2:$C$52)) ->  | G174: 0
C175: =IF(B175="","",SUMIF('الرصيد الثابت'!$A$2:$A$52,B175,'الرصيد الثابت'!$B$2:$B$52)) ->  | D175: =IF(B175="","",SUMIF('الرصيد الثابت'!$A$2:$A$52,B175,'الرصيد الثابت'!$C$2:$C$52)) ->  | G175: 0
C176: =IF(B176="","",SUMIF('الرصيد الثابت'!$A$2:$A$52,B176,'الرصيد الثابت'!$B$2:$B$52)) ->  | D176: =IF(B176="","",SUMIF('الرصيد الثابت'!$A$2:$A$52,B176,'الرصيد الثابت'!$C$2:$C$52)) ->  | G176: 0
C177: =IF(B177="","",SUMIF('الرصيد الثابت'!$A$2:$A$52,B177,'الرصيد الثابت'!$B$2:$B$52)) ->  | D177: =IF(B177="","",SUMIF('الرصيد الثابت'!$A$2:$A$52,B177,'الرصيد الثابت'!$C$2:$C$52)) ->  | G177: 0
C178: =IF(B178="","",SUMIF('الرصيد الثابت'!$A$2:$A$52,B178,'الرصيد الثابت'!$B$2:$B$52)) ->  | D178: =IF(B178="","",SUMIF('الرصيد الثابت'!$A$2:$A$52,B178,'الرصيد الثابت'!$C$2:$C$52)) ->  | G178: 0
C179: =IF(B179="","",SUMIF('الرصيد الثابت'!$A$2:$A$52,B179,'الرصيد الثابت'!$B$2:$B$52)) ->  | D179: =IF(B179="","",SUMIF('الرصيد الثابت'!$A$2:$A$52,B179,'الرصيد الثابت'!$C$2:$C$52)) ->  | G179: 0
C180: =IF(B180="","",SUMIF('الرصيد الثابت'!$A$2:$A$52,B180,'الرصيد الثابت'!$B$2:$B$52)) ->  | D180: =IF(B180="","",SUMIF('الرصيد الثابت'!$A$2:$A$52,B180,'الرصيد الثابت'!$C$2:$C$52)) ->  | G180: 0
C181: =IF(B181="","",SUMIF('الرصيد الثابت'!$A$2:$A$52,B181,'الرصيد الثابت'!$B$2:$B$52)) ->  | D181: =IF(B181="","",SUMIF('الرصيد الثابت'!$A$2:$A$52,B181,'الرصيد الثابت'!$C$2:$C$52)) ->  | G181: 0
C182: =IF(B182="","",SUMIF('الرصيد الثابت'!$A$2:$A$52,B182,'الرصيد الثابت'!$B$2:$B$52)) ->  | D182: =IF(B182="","",SUMIF('الرصيد الثابت'!$A$2:$A$52,B182,'الرصيد الثابت'!$C$2:$C$52)) ->  | G182: 0
C183: =IF(B183="","",SUMIF('الرصيد الثابت'!$A$2:$A$52,B183,'الرصيد الثابت'!$B$2:$B$52)) ->  | D183: =IF(B183="","",SUMIF('الرصيد الثابت'!$A$2:$A$52,B183,'الرصيد الثابت'!$C$2:$C$52)) ->  | G183: 0
C184: =IF(B184="","",SUMIF('الرصيد الثابت'!$A$2:$A$52,B184,'الرصيد الثابت'!$B$2:$B$52)) ->  | D184: =IF(B184="","",SUMIF('الرصيد الثابت'!$A$2:$A$52,B184,'الرصيد الثابت'!$C$2:$C$52)) ->  | G184: 0
C185: =IF(B185="","",SUMIF('الرصيد الثابت'!$A$2:$A$52,B185,'الرصيد الثابت'!$B$2:$B$52)) ->  | D185: =IF(B185="","",SUMIF('الرصيد الثابت'!$A$2:$A$52,B185,'الرصيد الثابت'!$C$2:$C$52)) ->  | G185: 0
C186: =IF(B186="","",SUMIF('الرصيد الثابت'!$A$2:$A$52,B186,'الرصيد الثابت'!$B$2:$B$52)) ->  | D186: =IF(B186="","",SUMIF('الرصيد الثابت'!$A$2:$A$52,B186,'الرصيد الثابت'!$C$2:$C$52)) ->  | G186: 0
C187: =IF(B187="","",SUMIF('الرصيد الثابت'!$A$2:$A$52,B187,'الرصيد الثابت'!$B$2:$B$52)) ->  | D187: =IF(B187="","",SUMIF('الرصيد الثابت'!$A$2:$A$52,B187,'الرصيد الثابت'!$C$2:$C$52)) ->  | G187: 0
C188: =IF(B188="","",SUMIF('الرصيد الثابت'!$A$2:$A$52,B188,'الرصيد الثابت'!$B$2:$B$52)) ->  | D188: =IF(B188="","",SUMIF('الرصيد الثابت'!$A$2:$A$52,B188,'الرصيد الثابت'!$C$2:$C$52)) ->  | G188: 0
C189: =IF(B189="","",SUMIF('الرصيد الثابت'!$A$2:$A$52,B189,'الرصيد الثابت'!$B$2:$B$52)) ->  | D189: =IF(B189="","",SUMIF('الرصيد الثابت'!$A$2:$A$52,B189,'الرصيد الثابت'!$C$2:$C$52)) ->  | G189: 0
C190: =IF(B190="","",SUMIF('الرصيد الثابت'!$A$2:$A$52,B190,'الرصيد الثابت'!$B$2:$B$52)) ->  | D190: =IF(B190="","",SUMIF('الرصيد الثابت'!$A$2:$A$52,B190,'الرصيد الثابت'!$C$2:$C$52)) ->  | G190: 0
C191: =IF(B191="","",SUMIF('الرصيد الثابت'!$A$2:$A$52,B191,'الرصيد الثابت'!$B$2:$B$52)) ->  | D191: =IF(B191="","",SUMIF('الرصيد الثابت'!$A$2:$A$52,B191,'الرصيد الثابت'!$C$2:$C$52)) ->  | G191: 0
C192: =IF(B192="","",SUMIF('الرصيد الثابت'!$A$2:$A$52,B192,'الرصيد الثابت'!$B$2:$B$52)) ->  | D192: =IF(B192="","",SUMIF('الرصيد الثابت'!$A$2:$A$52,B192,'الرصيد الثابت'!$C$2:$C$52)) ->  | G192: 0
C193: =IF(B193="","",SUMIF('الرصيد الثابت'!$A$2:$A$52,B193,'الرصيد الثابت'!$B$2:$B$52)) ->  | D193: =IF(B193="","",SUMIF('الرصيد الثابت'!$A$2:$A$52,B193,'الرصيد الثابت'!$C$2:$C$52)) ->  | G193: 0
C194: =IF(B194="","",SUMIF('الرصيد الثابت'!$A$2:$A$52,B194,'الرصيد الثابت'!$B$2:$B$52)) ->  | D194: =IF(B194="","",SUMIF('الرصيد الثابت'!$A$2:$A$52,B194,'الرصيد الثابت'!$C$2:$C$52)) ->  | G194: 0
C195: =IF(B195="","",SUMIF('الرصيد الثابت'!$A$2:$A$52,B195,'الرصيد الثابت'!$B$2:$B$52)) ->  | D195: =IF(B195="","",SUMIF('الرصيد الثابت'!$A$2:$A$52,B195,'الرصيد الثابت'!$C$2:$C$52)) ->  | G195: 0
A196: =IF(B196="","",TODAY()) ->  | C196: =IF(B196="","",SUMIF('الرصيد الثابت'!$A$2:$A$52,B196,'الرصيد الثابت'!$B$2:$B$52)) ->  | D196: =IF(B196="","",SUMIF('الرصيد الثابت'!$A$2:$A$52,B196,'الرصيد الثابت'!$C$2:$C$52)) ->  | G196: =SUM(E196-F196) -> 0
C197: =IF(B197="","",SUMIF('الرصيد الثابت'!$A$2:$A$52,B197,'الرصيد الثابت'!$B$2:$B$52)) ->  | D197: =IF(B197="","",SUMIF('الرصيد الثابت'!$A$2:$A$52,B197,'الرصيد الثابت'!$C$2:$C$52)) ->  | G197: 0
C198: =IF(B198="","",SUMIF('الرصيد الثابت'!$A$2:$A$52,B198,'الرصيد الثابت'!$B$2:$B$52)) ->  | D198: =IF(B198="","",SUMIF('الرصيد الثابت'!$A$2:$A$52,B198,'الرصيد الثابت'!$C$2:$C$52)) ->  | G198: 0
C199: =IF(B199="","",SUMIF('الرصيد الثابت'!$A$2:$A$52,B199,'الرصيد الثابت'!$B$2:$B$52)) ->  | D199: =IF(B199="","",SUMIF('الرصيد الثابت'!$A$2:$A$52,B199,'الرصيد الثابت'!$C$2:$C$52)) ->  | G199: 0
C200: =IF(B200="","",SUMIF('الرصيد الثابت'!$A$2:$A$52,B200,'الرصيد الثابت'!$B$2:$B$52)) ->  | D200: =IF(B200="","",SUMIF('الرصيد الثابت'!$A$2:$A$52,B200,'الرصيد الثابت'!$C$2:$C$52)) ->  | G200: 0
... 2701 more rows
